{"text_format":"1","workbook":"xlsx","n_sheets":4,"sheets":["Ajánlati tábla","Calc","Díjak-növények","Segéd"],"not_rendered":{"charts":0,"images":5,"macros":1,"external_links":0,"defined_names":7,"comments":0,"pivot_tables":0},"unopened":[],"bounds":{"document_bytes":16777216,"sheet_cells":100000,"rows_first":2000,"rows_last":500,"rows_between":2000,"halvings":0,"cell_chars":16384,"cell_head_chars":4096},"cells_cut":0,"cells_raw":0,"read":"whole","date_system":"1900"}

{"sheet":"Ajánlati tábla","index":0,"n_rows":34,"n_cols":26,"rows_kept":34,"cut":false,"hidden":false,"merged":[[23,17,24,17],[23,18,24,25],[10,10,10,12],[1,8,3,9],[10,7,10,9],[1,1,1,7],[2,2,2,5],[0,10,2,12],[20,2,20,4],[21,18,22,25],[19,17,20,17],[17,21,18,22],[21,17,22,17],[19,18,20,25],[15,1,15,6],[2,24,2,25],[17,23,18,25],[0,14,1,22],[0,2,0,9],[17,17,18,20],[18,1,18,4],[3,1,3,2],[2,16,2,18],[2,20,2,22],[3,10,3,22]]}
[null,null,"Biztosítási díjkalkulátor\n2021/2022. mezőgazdasági termelési időszakra\n(ver.: 2021.09.08)",null,null,null,null,null,null,null,"Államilag díjtámogatott \"A\" típusú összkockázatú biztosítás (+jég és vihar önrész biztosítás)\n(várható támogatás akár. 70%)*",null,null,null,"\"IKR Agrár mezőgazdasági biztosítási csomag\" vagy \n\"B illetve C\"  tipusú államilag díjtámogatott és GAZDA kiegészítő biztosítási csomag (GB444)\n(várható támogatás minimum 50 %)*"]
[null,"Biztosítási alapadatok",null,null,null,null,null,null,"Igényel állami támogatást?"]
[null,"Növény csoport választás: ==>","Alap_szántóföldi_növények",null,null,null,null,null,null,null,null,null,null,null,"Alap biztosítás\njég, tűz kockázatra",null,"Kiegészítő biztosítás\n vihar kockázatra",null,null,null,"Kiegészítő biztosítás\ntéli fagy kockázatra",null,null,null,"Kalkulált biztosítási díj összesen"]
[null,"Biztosítandó növények (kódok)",null,"Biztosítandó terület (ha)","Várható hozam (tonna/ha)","Termény biztosítandó egységára (tonna/HUF)","Kalkulált biztosítási\nérték (HUF)","Egy hektárra jutó biztosítási érték (HUF)",null,null,"Biztosítási díjak (állami támogatás nélkül)",null,null,null,null,null,null,null,null,null,null,null,null,null,"Állami támogatás nélkül","Várható állami támogatás után*\n"]
[null,"Nincs",{"$f":"Calc!A6","v":"===="},null,null,null,{"$f":"Calc!F6","v":0},{"$f":"Calc!G6","v":""},null,{"$f":"Calc!J6","v":"-----"},null,{"$f":"Calc!N6","v":"-----"},{"$f":"Calc!S6","v":0},null,{"$f":"Calc!V6","v":0},null,null,{"$f":"Calc!AF6","v":"-----"},{"$f":"Calc!AG6","v":0},null,null,{"$f":"Calc!AO6","v":"-----"},{"$f":"Calc!AP6","v":0},null,{"$f":"Calc!AV6","v":0},{"$f":"Calc!AW6","v":0}]
[null,"Nincs",{"$f":"Calc!A7","v":"===="},null,null,null,{"$f":"Calc!F7","v":0},{"$f":"Calc!G7","v":""},null,{"$f":"Calc!J7","v":"-----"},null,{"$f":"Calc!N7","v":"-----"},{"$f":"Calc!S7","v":0},null,{"$f":"Calc!V7","v":0},null,null,{"$f":"Calc!AF7","v":"-----"},{"$f":"Calc!AG7","v":0},null,null,{"$f":"Calc!AO7","v":"-----"},{"$f":"Calc!AP7","v":0},null,{"$f":"Calc!AV7","v":0},{"$f":"Calc!AW7","v":0}]
[null,"nincs",{"$f":"Calc!A8","v":"===="},null,null,null,{"$f":"Calc!F8","v":0},{"$f":"Calc!G8","v":""},null,{"$f":"Calc!J8","v":"-----"},null,{"$f":"Calc!N8","v":"-----"},{"$f":"Calc!S8","v":0},null,{"$f":"Calc!V8","v":0},null,null,{"$f":"Calc!AF8","v":"-----"},{"$f":"Calc!AG8","v":0},null,null,{"$f":"Calc!AO8","v":"-----"},{"$f":"Calc!AP8","v":0},null,{"$f":"Calc!AV8","v":0},{"$f":"Calc!AW8","v":0}]
[null,"nincs",{"$f":"Calc!A9","v":"===="},null,null,null,{"$f":"Calc!F9","v":0},{"$f":"Calc!G9","v":""},null,{"$f":"Calc!J9","v":"-----"},null,{"$f":"Calc!N9","v":"-----"},{"$f":"Calc!S9","v":0},null,{"$f":"Calc!V9","v":0},null,null,{"$f":"Calc!AF9","v":"-----"},{"$f":"Calc!AG9","v":0},null,null,{"$f":"Calc!AO9","v":"-----"},{"$f":"Calc!AP9","v":0},null,{"$f":"Calc!AV9","v":0},{"$f":"Calc!AW9","v":0}]
[null,"nincs",{"$f":"Calc!A10","v":"===="},null,null,null,{"$f":"Calc!F10","v":0},{"$f":"Calc!G10","v":""},null,{"$f":"Calc!J10","v":"-----"},null,{"$f":"Calc!N10","v":"-----"},{"$f":"Calc!S10","v":0},null,{"$f":"Calc!V10","v":0},null,null,{"$f":"Calc!AF10","v":"-----"},{"$f":"Calc!AG10","v":0},null,null,{"$f":"Calc!AO10","v":"-----"},{"$f":"Calc!AP10","v":0},null,{"$f":"Calc!AV10","v":0},{"$f":"Calc!AW10","v":0}]
[null,"Nincs",{"$f":"Calc!A11","v":"===="},null,null,null,{"$f":"Calc!F11","v":0},{"$f":"Calc!G11","v":""},null,{"$f":"Calc!J11","v":"-----"},null,{"$f":"Calc!N11","v":"-----"},{"$f":"Calc!S11","v":0},null,{"$f":"Calc!V11","v":0},null,null,{"$f":"Calc!AF11","v":"-----"},{"$f":"Calc!AG11","v":0},null,null,{"$f":"Calc!AO11","v":"-----"},{"$f":"Calc!AP11","v":0},null,{"$f":"Calc!AV11","v":0},{"$f":"Calc!AW11","v":0}]
[null,"Összesen",null,{"$f":"SUM(D5:D10)","v":0},null,null,{"$f":"Calc!F12","v":0},null,null,null,{"$f":"Calc!S12","v":0},null,null,null,{"$f":"Calc!V12","v":0},null,null,null,{"$f":"Calc!AG12","v":0},null,null,null,{"$f":"Calc!AP12","v":0},null,{"$f":"Calc!AV12","v":0},{"$f":"SUM(Z5:Z10)","v":0}]
[]
[null,"(alkalmazható 2021. szeptember 1-től 2022. május 31-ig)"]
[]
[]
[null,"Amennyiben sikerült felkelteni érdeklődését a kitöltött kalkulációt juttassa el az IKR Agrár Kft. területileg illetékes üzletkötőjéhez"]
[]
[null,"vagy",null,null,null,null,null,null,null,null,null,null,null,null,null,null,null,"Érdeklődő adatai:",null,null,null,"IKR Agrár partnerkód \n(ha már partnerünk)"]
[null,"Szollingerné Böröcz Renáta\nnövénybiztosítási ügyintéző részére"]
[null,null,null,null,null,null,null,null,null,null,null,null,null,null,null,null,null,"Név:"]
[null,"e-mail:","szollingerne@ikragrar.hu"]
[null,"Mobil:","+36 (20) 414-2512",null,null,null,null,null,null,null,null,null,null,null,null,null,null,"Tel.:"]
[null,"Telefon:","+36 (34) 569-027"]
[null,"Fax.:","+36 (34) 569-029",null,null,null,null,null,null,null,null,null,null,null,null,null,null,"e-mail:"]
[]
[]
[]
[]
[]
[]
[null,"Felhívjuk figyelmét, hogy a fenti kalkulációban feltüntetett biztosításra vonatkozó információk nem teljeskörűek, célja kizárólag a figyelem felhívása, azok egyes részletszabályairól érdeklődjön az illetékes üzletkötőjénél."]
[null,"Jelen díjkalkuláció kizárólag technikai eszköz, az abban foglaltak nem tekintendőek az IKR Agrár Kft. részéről végleges ajánlatnak.  "]
[]
[null,"* A várható állami támogatást a 2021. szeptember havi információk alapján szerepeltetjük a kalkulációban, melynek végleges értéke változhat."]

{"sheet":"Calc","index":1,"n_rows":15,"n_cols":54,"rows_kept":15,"cut":false,"hidden":true,"merged":[[1,0,4,0],[1,1,4,1],[2,21,2,27],[3,21,3,22],[2,2,2,4],[2,5,4,5],[2,6,4,6],[0,8,1,9],[0,11,1,19],[2,8,3,9],[2,47,3,52],[2,11,3,13],[2,18,3,19],[2,14,3,17],[2,32,3,36],[0,29,1,36],[0,22,1,27],[0,38,1,45],[2,29,3,31],[2,38,3,40],[2,41,3,45]]}
[null,null,null,null,null,null,null,null,null,null,null,"Vezérlések \"A\" típusú biztosítás",null,null,null,null,null,null,null,null,null,null,"Alap fedezet (tűz, jég) kezelése",null,null,null,null,null,null,"Vihar kiegészítő kezelése",null,null,null,null,null,null,null,null,"Télifagy kiegészítő kezelése"]
["kód","növ. neve",null,null,null,null,null,null,null,null,null,null,null,null,null,null,null,null,null,null,null,"Kalkulált díjak"]
[null,null,"Átvett biztosítási alapadatok",null,null,{"$f":"'Ajánlati tábla'!G4","v":"Kalkulált biztosítási\nérték (HUF)"},{"$f":"'Ajánlati tábla'!H4","v":"Egy hektárra jutó biztosítási érték (HUF)"},null,null,null,null,"\"A\" összkockázatú biztosítást",null,null,"Díjtételek és díjak",null,null,null,"Biztosítási díj",null,null,"Alap fedezet (tűz, jég)",null,null,null,null,null,null,null,"Vihar kiegészítőt vezérlése",null,null,null,null,null,null,null,null,"télifagy kiegészítő vezérlése"]
[null,null,null,null,null,null,null,null,null,null,null,null,null,null,null,null,null,null,null,null,null,"Kalkulált díjak"]
[null,null,{"$f":"'Ajánlati tábla'!D4","v":"Biztosítandó terület (ha)"},{"$f":"'Ajánlati tábla'!E4","v":"Várható hozam (tonna/ha)"},{"$f":"'Ajánlati tábla'!F4","v":"Termény biztosítandó egységára (tonna/HUF)"},null,null,null,"Kér állami támogatást? (aj ajánlati lapról)","Állami támogatás szöveg",null,"\"A\" biztosítás kérhető?","Igényel \"A\" összkockázatú biztosítást","\"A\" összkockázatú díj szöveg","Támogatás nélkül díjtétel","Kiegészítő díjtétel","Támogatott díj támogatás nélkül összesen","Kiegészítő díj összesen","Támogatás nélkül összesen","Támogatás után",null,"Teljes díj","Támogatott díj","Kiegészítő díj","Támogatott kulcs (tűz)","Kiegészítő kulcs (tűz)","Támogatott kulcs (jég)","Kiegészítő kulcs (jég)",null,"Kérhető vihar?","Kér vihart (az ajaánlati lapról)","Vihar szöveg","Teljes díj","Támogatott díj","Kiegészítő díj","Támogatott kulcs","Kiegészítő kulcs",null,"Köthető télifagy","Kér télifagyot (az ajaánlati lapról)","Télifagy szöveg","Teljes díj","Támogatott díj","Kiegészítő díj","Támogatott kulcs","Kiegészítő kulcs",null,"Teljes díj (támogatás nélkül, alap + kiegészítő)","Támogatott díj összesen (az ajánlati táblára)","Támogatott díj összesen csak az \"A\" választása esetén","Támogatott díj összesen csak a \"B és C\" esetén","Támogatott díj (összesen)","Kiegészítő díj (összesen)","Ellenőrzés"]
[{"$f":"IFERROR(VLOOKUP(B6,'Díjak-növények'!B:AF,30,FALSE),\"====\")","v":"===="},{"$f":"'Ajánlati tábla'!B5","v":"Nincs"},{"$f":"'Ajánlati tábla'!D5","v":0},{"$f":"'Ajánlati tábla'!E5","v":0},{"$f":"'Ajánlati tábla'!F5","v":0},{"$f":"IF(A6=\"------\",0,C6*D6*E6)","v":0},{"$f":"IF((F6+C6=0),\"\",F6/C6)","v":""},null,true,{"$f":"IF(F6=0,\"-----\",IF(I6,\"Igen\",\"Nem\"))","v":"-----"},null,{"$f":"VLOOKUP(A6,'Díjak-növények'!A:E,3,0)","v":"Nem"},false,{"$f":"IF(E6=0,\"-----\",IF(L6=\"Nem\",\"Nincs\",IF(M6,\"Igen\",\"Nem\")))","v":"-----"},{"$f":"IF(N6=\"Igen\",VLOOKUP(A6,'Díjak-növények'!$A$5:$Z$312,22,0),0)","v":0},{"$f":"IF(N6=\"Igen\",VLOOKUP(A6,'Díjak-növények'!$A$5:$AA$312,26,0)-O6,0)","v":0},{"$f":"IFERROR(F6*O6/100,0)","v":0},{"$f":"IFERROR(F6*P6/100,0)","v":0},{"$f":"Q6+R6","v":0},{"$f":"IF(J6=\"-----\",0,IF(J6=\"Nem\",S6,Q6*$D$15+R6))","v":0},null,{"$f":"W6+X6","v":0},{"$f":"F6*(Y6+AA6)/100","v":0},{"$f":"F6*(Z6+AB6)/100","v":0},0,{"$f":"IF($N6=\"Igen\",0,VLOOKUP($A6,'Díjak-növények'!$A:$Z,12,0))","v":0},{"$f":"IF($N6=\"Igen\",0,VLOOKUP($A6,'Díjak-növények'!$A:$Z,13,0))","v":0},{"$f":"IF($N6=\"Igen\",0,VLOOKUP($A6,'Díjak-növények'!$A:$Z,14,0))","v":0},null,{"$f":"VLOOKUP($A6,'Díjak-növények'!$A:$Z,5,0)","v":"Nem"},false,{"$f":"IF(F6=0,\"-----\",IF(OR(AD6=\"Nem\",N6=\"Igen\"),\"Nincs\",IF(AE6,\"Igen\",\"Nem\")))","v":"-----"},{"$f":"AH6+AI6","v":0},{"$f":"IF(AF6=\"Igen\",F6*AJ6/100,0)","v":0},{"$f":"IF(AF6=\"Igen\",F6*AK6/100,0)","v":0},{"$f":"IF($AF6=\"Igen\",VLOOKUP($A6,'Díjak-növények'!$A:$Z,18,0),0)","v":0},{"$f":"IF($AF6=\"Igen\",VLOOKUP($A6,'Díjak-növények'!$A:$Z,19,0),0)","v":0},null,{"$f":"VLOOKUP($A6,'Díjak-növények'!$A:$Z,4,0)","v":"Nem"},false,{"$f":"IF(F6=0,\"-----\",IF(OR(AM6=\"Nem\",N6=\"Igen\"),\"Nincs\",IF(AN6,\"Igen\",\"Nem\")))","v":"-----"},{"$f":"AQ6+AR6","v":0},{"$f":"IF(AO6=\"Igen\",F6*AS6/100,0)","v":0},{"$f":"IF(AO6=\"Igen\",F6*AT6/100,0)","v":0},{"$f":"IF($AO6=\"Igen\",VLOOKUP($A6,'Díjak-növények'!$A:$Z,17,0),0)","v":0},0,null,{"$f":"S6+V6+AG6+AP6","v":0},{"$f":"IF(J6=\"Igen\",AX6+AY6+BA6,AV6)","v":0},{"$f":"IF(N6=\"Igen\",AZ6*(1-$D$15),0)","v":0},{"$f":"IF(J6=\"Igen\",(W6+AH6+AQ6)*(1-$D$14),0)","v":0},{"$f":"Q6+W6+AH6+AQ6","v":0},{"$f":"R6+X6+AI6+AR6","v":0},{"$f":"IF(AV6=(AZ6+BA6),\"OK\",\"Hiba\")","v":"OK"}]
[{"$f":"IFERROR(VLOOKUP(B7,'Díjak-növények'!B:AF,30,FALSE),\"====\")","v":"===="},{"$f":"'Ajánlati tábla'!B6","v":"Nincs"},{"$f":"'Ajánlati tábla'!D6","v":0},{"$f":"'Ajánlati tábla'!E6","v":0},{"$f":"'Ajánlati tábla'!F6","v":0},{"$f":"IF(A7=\"------\",0,C7*D7*E7)","v":0},"",null,true,{"$f":"IF(F7=0,\"-----\",IF(I7,\"Igen\",\"Nem\"))","v":"-----"},null,{"$f":"VLOOKUP(A7,'Díjak-növények'!A:E,3,0)","v":"Nem"},false,{"$f":"IF(E7=0,\"-----\",IF(L7=\"Nem\",\"Nincs\",IF(M7,\"Igen\",\"Nem\")))","v":"-----"},{"$f":"IF(N7=\"Igen\",VLOOKUP(A7,'Díjak-növények'!$A$5:$Z$312,22,0),0)","v":0},{"$f":"IF(N7=\"Igen\",VLOOKUP(A7,'Díjak-növények'!$A$5:$AA$312,26,0)-O7,0)","v":0},{"$f":"IFERROR(F7*O7/100,0)","v":0},{"$f":"IFERROR(F7*P7/100,0)","v":0},{"$f":"Q7+R7","v":0},{"$f":"IF(J7=\"-----\",0,IF(J7=\"Nem\",S7,Q7*$D$15+R7))","v":0},null,{"$f":"W7+X7","v":0},{"$f":"F7*(Y7+AA7)/100","v":0},{"$f":"F7*(Z7+AB7)/100","v":0},0,{"$f":"IF($N7=\"Igen\",0,VLOOKUP($A7,'Díjak-növények'!$A:$Z,12,0))","v":0},{"$f":"IF($N7=\"Igen\",0,VLOOKUP($A7,'Díjak-növények'!$A:$Z,13,0))","v":0},{"$f":"IF($N7=\"Igen\",0,VLOOKUP($A7,'Díjak-növények'!$A:$Z,14,0))","v":0},null,{"$f":"VLOOKUP($A7,'Díjak-növények'!$A:$Z,5,0)","v":"Nem"},false,{"$f":"IF(F7=0,\"-----\",IF(OR(AD7=\"Nem\",N7=\"Igen\"),\"Nincs\",IF(AE7,\"Igen\",\"Nem\")))","v":"-----"},{"$f":"AH7+AI7","v":0},{"$f":"IF(AF7=\"Igen\",F7*AJ7/100,0)","v":0},{"$f":"IF(AF7=\"Igen\",F7*AK7/100,0)","v":0},{"$f":"IF($AF7=\"Igen\",VLOOKUP($A7,'Díjak-növények'!$A:$Z,18,0),0)","v":0},{"$f":"IF($N7=\"Nem\",VLOOKUP($A7,'Díjak-növények'!$A:$Z,19,0),0)","v":0},null,{"$f":"VLOOKUP($A7,'Díjak-növények'!$A:$Z,4,0)","v":"Nem"},false,{"$f":"IF(F7=0,\"-----\",IF(OR(AM7=\"Nem\",N7=\"Igen\"),\"Nincs\",IF(AN7,\"Igen\",\"Nem\")))","v":"-----"},{"$f":"AQ7+AR7","v":0},{"$f":"IF(AO7=\"Igen\",F7*AS7/100,0)","v":0},{"$f":"IF(AO7=\"Igen\",F7*AT7/100,0)","v":0},{"$f":"IF($AO7=\"Nem\",0,VLOOKUP($A7,'Díjak-növények'!$A:$Z,17,0))","v":0},0,null,{"$f":"S7+V7+AG7+AP7","v":0},{"$f":"IF(J7=\"Igen\",AX7+AY7+BA7,AV7)","v":0},{"$f":"IF(N7=\"Igen\",AZ7*(1-$D$15),0)","v":0},{"$f":"IF(J7=\"Igen\",(W7+AH7+AQ7)*(1-$D$14),0)","v":0},{"$f":"Q7+W7+AH7+AQ7","v":0},{"$f":"R7+X7+AI7+AR7","v":0},{"$f":"IF(AV7=(AZ7+BA7),\"OK\",\"Hiba\")","v":"OK"}]
[{"$f":"IFERROR(VLOOKUP(B8,'Díjak-növények'!B:AF,30,FALSE),\"====\")","v":"===="},{"$f":"'Ajánlati tábla'!B7","v":"nincs"},{"$f":"'Ajánlati tábla'!D7","v":0},{"$f":"'Ajánlati tábla'!E7","v":0},{"$f":"'Ajánlati tábla'!F7","v":0},0,"",null,true,"-----",null,{"$f":"VLOOKUP(A8,'Díjak-növények'!A:E,3,0)","v":"Nem"},false,"-----",{"$f":"IF(N8=\"Igen\",VLOOKUP(A8,'Díjak-növények'!$A$5:$Z$312,22,0),0)","v":0},{"$f":"IF(N8=\"Igen\",VLOOKUP(A8,'Díjak-növények'!$A$5:$AA$312,26,0)-O8,0)","v":0},0,0,0,0,null,0,0,0,0,{"$f":"IF($N8=\"Igen\",0,VLOOKUP($A8,'Díjak-növények'!$A:$Z,12,0))","v":0},{"$f":"IF($N8=\"Igen\",0,VLOOKUP($A8,'Díjak-növények'!$A:$Z,13,0))","v":0},{"$f":"IF($N8=\"Igen\",0,VLOOKUP($A8,'Díjak-növények'!$A:$Z,14,0))","v":0},null,{"$f":"VLOOKUP($A8,'Díjak-növények'!$A:$Z,5,0)","v":"Nem"},false,"-----",0,0,0,{"$f":"IF($AF8=\"Igen\",VLOOKUP($A8,'Díjak-növények'!$A:$Z,18,0),0)","v":0},{"$f":"IF($N8=\"Nem\",VLOOKUP($A8,'Díjak-növények'!$A:$Z,19,0),0)","v":0},null,{"$f":"VLOOKUP($A8,'Díjak-növények'!$A:$Z,4,0)","v":"Nem"},false,"-----",0,0,0,{"$f":"IF($AO8=\"Nem\",0,VLOOKUP($A8,'Díjak-növények'!$A:$Z,17,0))","v":0},0,null,0,0,0,0,0,0,"OK"]
[{"$f":"IFERROR(VLOOKUP(B9,'Díjak-növények'!B:AF,30,FALSE),\"====\")","v":"===="},{"$f":"'Ajánlati tábla'!B8","v":"nincs"},{"$f":"'Ajánlati tábla'!D8","v":0},{"$f":"'Ajánlati tábla'!E8","v":0},{"$f":"'Ajánlati tábla'!F8","v":0},0,"",null,true,"-----",null,{"$f":"VLOOKUP(A9,'Díjak-növények'!A:E,3,0)","v":"Nem"},false,"-----",{"$f":"IF(N9=\"Igen\",VLOOKUP(A9,'Díjak-növények'!$A$5:$Z$312,22,0),0)","v":0},{"$f":"IF(N9=\"Igen\",VLOOKUP(A9,'Díjak-növények'!$A$5:$AA$312,26,0)-O9,0)","v":0},0,0,0,0,null,0,0,0,0,{"$f":"IF($N9=\"Igen\",0,VLOOKUP($A9,'Díjak-növények'!$A:$Z,12,0))","v":0},{"$f":"IF($N9=\"Igen\",0,VLOOKUP($A9,'Díjak-növények'!$A:$Z,13,0))","v":0},{"$f":"IF($N9=\"Igen\",0,VLOOKUP($A9,'Díjak-növények'!$A:$Z,14,0))","v":0},null,{"$f":"VLOOKUP($A9,'Díjak-növények'!$A:$Z,5,0)","v":"Nem"},false,"-----",0,0,0,{"$f":"IF($AF9=\"Igen\",VLOOKUP($A9,'Díjak-növények'!$A:$Z,18,0),0)","v":0},{"$f":"IF($N9=\"Nem\",VLOOKUP($A9,'Díjak-növények'!$A:$Z,19,0),0)","v":0},null,{"$f":"VLOOKUP($A9,'Díjak-növények'!$A:$Z,4,0)","v":"Nem"},false,"-----",0,0,0,{"$f":"IF($AO9=\"Nem\",0,VLOOKUP($A9,'Díjak-növények'!$A:$Z,17,0))","v":0},0,null,0,0,0,0,0,0,"OK"]
[{"$f":"IFERROR(VLOOKUP(B10,'Díjak-növények'!B:AF,30,FALSE),\"====\")","v":"===="},{"$f":"'Ajánlati tábla'!B9","v":"nincs"},{"$f":"'Ajánlati tábla'!D9","v":0},{"$f":"'Ajánlati tábla'!E9","v":0},{"$f":"'Ajánlati tábla'!F9","v":0},0,"",null,true,"-----",null,{"$f":"VLOOKUP(A10,'Díjak-növények'!A:E,3,0)","v":"Nem"},false,"-----",{"$f":"IF(N10=\"Igen\",VLOOKUP(A10,'Díjak-növények'!$A$5:$Z$312,22,0),0)","v":0},{"$f":"IF(N10=\"Igen\",VLOOKUP(A10,'Díjak-növények'!$A$5:$AA$312,26,0)-O10,0)","v":0},0,0,0,0,null,0,0,0,0,{"$f":"IF($N10=\"Igen\",0,VLOOKUP($A10,'Díjak-növények'!$A:$Z,12,0))","v":0},{"$f":"IF($N10=\"Igen\",0,VLOOKUP($A10,'Díjak-növények'!$A:$Z,13,0))","v":0},{"$f":"IF($N10=\"Igen\",0,VLOOKUP($A10,'Díjak-növények'!$A:$Z,14,0))","v":0},null,{"$f":"VLOOKUP($A10,'Díjak-növények'!$A:$Z,5,0)","v":"Nem"},false,"-----",0,0,0,{"$f":"IF($AF10=\"Igen\",VLOOKUP($A10,'Díjak-növények'!$A:$Z,18,0),0)","v":0},{"$f":"IF($N10=\"Nem\",VLOOKUP($A10,'Díjak-növények'!$A:$Z,19,0),0)","v":0},null,{"$f":"VLOOKUP($A10,'Díjak-növények'!$A:$Z,4,0)","v":"Nem"},false,"-----",0,0,0,{"$f":"IF($AO10=\"Nem\",0,VLOOKUP($A10,'Díjak-növények'!$A:$Z,17,0))","v":0},0,null,0,0,0,0,0,0,"OK"]
[{"$f":"IFERROR(VLOOKUP(B11,'Díjak-növények'!B:AF,30,FALSE),\"====\")","v":"===="},{"$f":"'Ajánlati tábla'!B10","v":"Nincs"},{"$f":"'Ajánlati tábla'!D10","v":0},{"$f":"'Ajánlati tábla'!E10","v":0},{"$f":"'Ajánlati tábla'!F10","v":0},0,"",null,true,"-----",null,{"$f":"VLOOKUP(A11,'Díjak-növények'!A:E,3,0)","v":"Nem"},false,"-----",{"$f":"IF(N11=\"Igen\",VLOOKUP(A11,'Díjak-növények'!$A$5:$Z$312,22,0),0)","v":0},{"$f":"IF(N11=\"Igen\",VLOOKUP(A11,'Díjak-növények'!$A$5:$AA$312,26,0)-O11,0)","v":0},0,0,0,0,null,0,0,0,0,{"$f":"IF($N11=\"Igen\",0,VLOOKUP($A11,'Díjak-növények'!$A:$Z,12,0))","v":0},{"$f":"IF($N11=\"Igen\",0,VLOOKUP($A11,'Díjak-növények'!$A:$Z,13,0))","v":0},{"$f":"IF($N11=\"Igen\",0,VLOOKUP($A11,'Díjak-növények'!$A:$Z,14,0))","v":0},null,{"$f":"VLOOKUP($A11,'Díjak-növények'!$A:$Z,5,0)","v":"Nem"},false,"-----",0,0,0,{"$f":"IF($AF11=\"Igen\",VLOOKUP($A11,'Díjak-növények'!$A:$Z,18,0),0)","v":0},{"$f":"IF($N11=\"Nem\",VLOOKUP($A11,'Díjak-növények'!$A:$Z,19,0),0)","v":0},null,{"$f":"VLOOKUP($A11,'Díjak-növények'!$A:$Z,4,0)","v":"Nem"},false,"-----",0,0,0,{"$f":"IF($AO11=\"Nem\",0,VLOOKUP($A11,'Díjak-növények'!$A:$Z,17,0))","v":0},0,null,0,0,0,0,0,0,"OK"]
[null,"Összesen",{"$f":"SUM(C6:C11)","v":0},null,null,{"$f":"SUM(F6:F11)","v":0},null,null,null,null,null,null,null,null,{"$f":"SUM(O6:O11)","v":0},{"$f":"SUM(P6:P11)","v":0},null,null,{"$f":"SUM(S6:S11)","v":0},null,null,{"$f":"SUM(V6:V11)","v":0},{"$f":"SUM(W6:W11)","v":0},{"$f":"SUM(X6:X11)","v":0},null,null,null,null,null,null,null,null,{"$f":"SUM(AG6:AG11)","v":0},0,0,null,null,null,null,null,null,{"$f":"SUM(AP6:AP11)","v":0},{"$f":"SUM(AQ6:AQ11)","v":0},{"$f":"SUM(AR6:AR11)","v":0},null,null,null,{"$f":"SUM(AV6:AV11)","v":0},{"$f":"SUM(AW6:AW11)","v":0},{"$f":"SUM(AX6:AX11)","v":0},null,{"$f":"SUM(AZ6:AZ11)","v":0},{"$f":"SUM(BA6:BA11)","v":0}]
[]
[null,"Várható állami támogatás mértéke (\"B, C\")",null,0.5]
[null,"Várható állami támogatás mértéke (\"A\")",null,0.7]

{"sheet":"Díjak-növények","index":2,"n_rows":312,"n_cols":32,"rows_kept":312,"cut":false,"hidden":true,"merged":[[0,0,3,0],[0,1,3,1],[0,5,0,9],[0,11,0,19],[0,21,0,25],[1,5,1,7],[1,8,1,9],[1,11,1,14],[1,16,3,16],[1,17,1,19],[1,25,3,25],[2,5,3,5],[2,6,3,6],[2,7,3,7],[2,8,3,8],[2,9,3,9],[0,2,1,4],[2,21,3,21],[2,2,3,2],[2,3,3,3],[2,4,3,4],[2,14,3,14],[2,17,3,17],[2,18,3,18],[2,19,3,19],[2,11,3,11],[2,12,3,12],[2,13,3,13],[1,22,1,23],[1,30,3,30],[1,31,3,31],[1,29,3,29],[0,27,0,29],[1,27,3,27],[1,28,3,28],[2,22,3,22],[2,23,3,23],[2,24,3,24]]}
["kód","növ. neve","Belső vezérlések",null,null,"Nem támogatott (GB444)",null,null,null,null,null,"Támogatott konstrukció \"B\" vagy \"C\" + GB444",null,null,null,null,null,null,null,null,null,"kilenc kockázat összevonva",null,null,null,null,null,"Belső vezérlések"]
[null,null,null,null,null,"alapkockázat",null,null,"kiegészítő",null,null,"alapkockázat",null,null,null,null,"kiegészítő télifagy \"B\" vagy \"C\"","kiegészítő vihar",null,null,null,"Támogatott  \"A\" típus","önrészbiztosítás (GB444)",null,null,"összesen",null,"IKR Agrár csoport","IKR Csoport megnevezés","MVH csoport megnevezés","hasznosítási kód","Növény veve"]
[null,null,"Köthető \"A típusú\" biztosítás","Köthető télifagy kiegészítő","Köthető vihar kiegészítő","tűz","jég","összesen","télifagy","vihar",null,"tűz (GB444)","jég (\"B\" vagy \"C\")","kiegészítő jég (GB444)","összesen",null,null,"Vihar \"B\" vagy \"C\"","önrészbiztosítás vihar GB444","összesen",null,"összkockázat","jég","vihar","Speciális tűz"]
[]
["====",null,"Nem",{"$f":"IF(I5<>0,\"Igen\",\"Nem\")","v":"Nem"},{"$f":"IF(J5<>0,\"Igen\",\"Nem\")","v":"Nem"},0,0,0,0,0,null,0,0,0,0,null,0,0,0,0,null,0,0,0,null,0,null,0,"Nincs","Nics",{"$f":"A5","v":"===="},{"$f":"B5","v":0}]
["KAL02","Tavaszi búza","Igen",{"$f":"IF(I6<>0,\"Igen\",\"Nem\")","v":"Nem"},{"$f":"IF(J6<>0,\"Igen\",\"Nem\")","v":"Igen"},0.06,0.63,{"$f":"F6+G6","v":0.69},null,0.5,null,0.06,0.53,0.1,{"$f":"L6+M6+N6","v":0.69000000000000006},null,null,0.4,0.1,{"$f":"S6+R6","v":0.5},null,1.5,0.1,0.1,0.06,{"$f":"X6+W6+V6+Y6","v":1.76},null,1,"Alap szántóföldi növények","Búza ",{"$f":"A6","v":"KAL02"},{"$f":"B6","v":"Tavaszi búza"}]
["KAL05","Tavaszi durumbúza","Igen","Nem","Igen",0.06,0.63,0.69,null,0.5,null,0.06,0.53,0.1,{"$f":"L7+M7+N7","v":0.69000000000000006},null,null,0.4,0.1,0.5,null,1.5,0.1,0.1,0.06,{"$f":"X7+W7+V7+Y7","v":1.76},null,1,"Alap szántóföldi növények","Búza ","KAL05","Tavaszi durumbúza"]
["KAL07","Tavaszi tönköly búza","Igen","Nem","Igen",0.06,0.63,0.69,null,0.5,null,0.06,0.53,0.1,0.69000000000000006,null,null,0.4,0.1,0.5,null,1.5,0.1,0.1,0.06,1.76,null,1,"Alap szántóföldi növények","Búza ","KAL07","Tavaszi tönköly búza"]
["KAL09","Tavaszi novum búza","Igen","Nem","Igen",0.06,0.63,0.69,null,0.5,null,0.06,0.53,0.1,0.69000000000000006,null,null,0.4,0.1,0.5,null,1.5,0.1,0.1,0.06,1.76,null,1,"Alap szántóföldi növények","Búza ","KAL09","Tavaszi novum búza"]
["KAL11","Tavaszi tönke búza","Igen","Nem","Igen",0.06,0.63,0.69,null,0.5,null,0.06,0.53,0.1,0.69000000000000006,null,null,0.4,0.1,0.5,null,1.5,0.1,0.1,0.06,1.76,null,1,"Alap szántóföldi növények","Búza ","KAL11","Tavaszi tönke búza"]
["KAL13","Tavaszi alakor búza","Igen","Nem","Igen",0.06,0.63,0.69,null,0.5,null,0.06,0.53,0.1,0.69000000000000006,null,null,0.4,0.1,0.5,null,1.5,0.1,0.1,0.06,1.76,null,1,"Alap szántóföldi növények","Búza ","KAL13","Tavaszi alakor búza"]
["KAL18","Tavaszi árpa","Igen","Nem","Igen",0.06,0.63,0.69,null,0.5,null,0.06,0.53,0.1,0.69000000000000006,null,null,0.4,0.1,0.5,null,1.5,0.1,0.1,0.06,1.76,null,1,"Alap szántóföldi növények","Árpa","KAL18","Tavaszi árpa"]
["KAL26","Tavaszi tritikálé","Igen","Nem","Igen",0.06,0.63,0.69,null,0.5,null,0.06,0.53,0.1,0.69000000000000006,null,null,0.4,0.1,0.5,null,1.5,0.1,0.1,0.06,1.76,null,1,"Alap szántóföldi növények","Tritikále","KAL26","Tavaszi tritikálé"]
["KAL01","Őszi búza","Igen","Igen","Igen",0.06,0.63,0.69,0.38,0.5,null,0.06,0.53,0.1,0.69000000000000006,null,0.38,0.4,0.1,0.5,null,1.63,0.1,0.1,0.06,1.89,null,1,"Alap szántóföldi növények","Búza ","KAL01","Őszi búza"]
["KAL04","Őszi durumbúza","Igen","Igen","Igen",0.06,0.63,0.69,0.38,0.5,null,0.06,0.53,0.1,0.69000000000000006,null,0.38,0.4,0.1,0.5,null,1.63,0.1,0.1,0.06,1.89,null,1,"Alap szántóföldi növények","Búza ","KAL04","Őszi durumbúza"]
["KAL06","Őszi tönköly búza","Igen","Igen","Igen",0.06,0.63,0.69,0.38,0.5,null,0.06,0.53,0.1,0.69000000000000006,null,0.38,0.4,0.1,0.5,null,1.63,0.1,0.1,0.06,1.89,null,1,"Alap szántóföldi növények","Búza ","KAL06","Őszi tönköly búza"]
["KAL08","Őszi novum búza","Igen","Igen","Igen",0.06,0.63,0.69,0.38,0.5,null,0.06,0.53,0.1,0.69000000000000006,null,0.38,0.4,0.1,0.5,null,1.63,0.1,0.1,0.06,1.89,null,1,"Alap szántóföldi növények","Búza ","KAL08","Őszi novum búza"]
["KAL10","Őszi tönke búza","Igen","Igen","Igen",0.06,0.63,0.69,0.38,0.5,null,0.06,0.53,0.1,0.69000000000000006,null,0.38,0.4,0.1,0.5,null,1.63,0.1,0.1,0.06,1.89,null,1,"Alap szántóföldi növények","Búza ","KAL10","Őszi tönke búza"]
["KAL12","Őszi alakor búza","Igen","Igen","Igen",0.06,0.63,0.69,0.38,0.5,null,0.06,0.53,0.1,0.69000000000000006,null,0.38,0.4,0.1,0.5,null,1.63,0.1,0.1,0.06,1.89,null,1,"Alap szántóföldi növények","Búza ","KAL12","Őszi alakor búza"]
["KAL15","Rozs","Igen","Igen","Igen",0.06,0.63,0.69,0.38,0.5,null,0.06,0.53,0.1,0.69000000000000006,null,0.38,0.4,0.1,0.5,null,1.63,0.1,0.1,0.06,1.89,null,1,"Alap szántóföldi növények","Rozs ","KAL15","Rozs"]
["KAL17","Őszi árpa","Igen","Igen","Igen",0.06,0.63,0.69,0.38,0.5,null,0.06,0.53,0.1,0.69000000000000006,null,0.38,0.4,0.1,0.5,null,1.63,0.1,0.1,0.06,1.89,null,1,"Alap szántóföldi növények","Árpa","KAL17","Őszi árpa"]
["KAL27","Őszi tritikálé","Igen","Igen","Igen",0.06,0.63,0.69,0.38,0.5,null,0.06,0.53,0.1,0.69000000000000006,null,0.38,0.4,0.1,0.5,null,1.63,0.1,0.1,0.06,1.89,null,1,"Alap szántóföldi növények","Tritikále","KAL27","Őszi tritikálé"]
["IND23","Napraforgó","Igen","Nem","Igen",0.06,0.63,0.69,null,1.25,null,0.06,0.53,0.1,0.69000000000000006,null,null,1.1499999999999999,0.1,1.25,null,2.63,0.1,0.1,0.06,2.89,null,1,"Alap szántóföldi növények","Napraforgó","IND23","Napraforgó"]
["KAL21","Kukorica","Igen","Nem","Igen",0.06,0.63,0.69,null,1.25,null,0.06,0.53,0.1,0.69000000000000006,null,null,1.1499999999999999,0.1,1.25,null,2.94,0.1,0.1,0.06,3.2,null,1,"Alap szántóföldi növények","Kukorica","KAL21","Kukorica"]
["IND04","Tavaszi káposztarepce","Igen","Nem","Igen",0.06,1.75,1.81,null,1.75,null,0.06,1.65,0.1,1.81,null,null,1.65,0.1,1.75,null,3.88,0.1,0.1,0.06,4.1399999999999997,null,1,"Alap szántóföldi növények","Repce","IND04","Tavaszi káposztarepce"]
["IND03","Őszi káposztarepce","Igen","Igen","Igen",0.06,1.75,1.81,1.75,1.75,null,0.06,1.65,0.1,1.81,null,1.75,1.65,0.1,1.75,null,4.5,0.1,0.1,0.06,4.76,null,1,"Alap szántóföldi növények","Repce","IND03","Őszi káposztarepce"]
["HAG01","Hagyományos gyümölcsös alma","Igen","Nem","Igen",0.06,10,10.06,null,1.88,null,0.06,9.9,0.1,10.06,null,null,1.78,0.1,1.8800000000000001,null,11.38,0.1,0.1,0.06,11.64,null,3,"Gyömölcsösök - gyümölcsök","Hagyományos gyümölcsösök","HAG01","Hagyományos gyümölcsös alma"]
["HAG15","Hagyományos gyümölcsös körte","Igen","Nem","Igen",0.06,10,10.06,null,1.88,null,0.06,9.9,0.1,10.06,null,null,1.78,0.1,1.8800000000000001,null,11.38,0.1,0.1,0.06,11.64,null,3,"Gyömölcsösök - gyümölcsök","Hagyományos gyümölcsösök","HAG15","Hagyományos gyümölcsös körte"]
["ULT01","Alma","Igen","Nem","Igen",0.06,10,10.06,null,1.88,null,0.06,9.9,0.1,10.06,null,null,1.78,0.1,1.8800000000000001,null,11.38,0.1,0.1,0.06,11.64,null,3,"Gyömölcsösök - gyümölcsök","Gyümölcsfák","ULT01","Alma"]
["ULT15","Körte","Igen","Nem","Igen",0.06,10,10.06,null,1.88,null,0.06,9.9,0.1,10.06,null,null,1.78,0.1,1.8800000000000001,null,11.38,0.1,0.1,0.06,11.64,null,3,"Gyömölcsösök - gyümölcsök","Gyümölcsfák","ULT15","Körte"]
["ULT19","Minőségi borszőlő ültetvény","Igen","Nem","Igen",0.06,10,10.06,null,1.88,null,0.06,9.9,0.1,10.06,null,null,1.78,0.1,1.8800000000000001,null,11.38,0.1,0.1,0.06,11.64,null,3,"Gyömölcsösök - gyümölcsök","Szőlő","ULT19","Minőségi borszőlő ültetvény"]
["ULT20","Egyéb borszőlő szőlőültetvény","Igen","Nem","Igen",0.06,10,10.06,null,1.88,null,0.06,9.9,0.1,10.06,null,null,1.78,0.1,1.8800000000000001,null,11.38,0.1,0.1,0.06,11.64,null,3,"Gyömölcsösök - gyümölcsök","Szőlő","ULT20","Egyéb borszőlő szőlőültetvény"]
["ULT29","Csemegeszőlő ültetvény","Igen","Nem","Igen",0.06,10,10.06,null,1.88,null,0.06,9.9,0.1,10.06,null,null,1.78,0.1,1.8800000000000001,null,11.38,0.1,0.1,0.06,11.64,null,3,"Gyömölcsösök - gyümölcsök","Szőlő","ULT29","Csemegeszőlő ültetvény"]
["BUR01","Burgonya","Nem","Nem","Nem",0.06,0.63,0.69,null,null,null,0.06,0.53,0.1,0.69000000000000006,null,null,null,null,null,null,null,null,null,null,null,null,9,"Egyéb növények","Burgonya","BUR01","Burgonya"]
["CUK01","Cukorrépa","Nem","Nem","Nem",0.06,0.63,0.69,null,null,null,0.06,0.53,0.1,0.69000000000000006,null,null,null,null,null,null,null,null,null,null,null,null,9,"Egyéb növények","Cukorrépa","CUK01","Cukorrépa"]
["FRU01","Görög dinnye","Nem","Nem","Nem",0.06,10,10.06,null,null,null,0.06,9.9,0.1,10.06,null,null,null,null,null,null,null,null,null,null,null,null,3,"Gyömölcsösök - gyümölcsök","Dinnye","FRU01","Görög dinnye"]
["FRU02","Tökre oltott görög dinnye","Nem","Nem","Nem",0.06,10,10.06,null,null,null,0.06,9.9,0.1,10.06,null,null,null,null,null,null,null,null,null,null,null,null,3,"Gyömölcsösök - gyümölcsök","Dinnye","FRU02","Tökre oltott görög dinnye"]
["FRU03","Sárgadinnye","Nem","Nem","Nem",0.06,10,10.06,null,null,null,0.06,9.9,0.1,10.06,null,null,null,null,null,null,null,null,null,null,null,null,3,"Gyömölcsösök - gyümölcsök","Dinnye","FRU03","Sárgadinnye"]
["FRU04","Földieper (szamóca)","Nem","Nem","Nem",0.06,10,10.06,null,null,null,0.06,9.9,0.1,10.06,null,null,null,null,null,null,null,null,null,null,null,null,3,"Gyömölcsösök - gyümölcsök","Földieper (szamóca)","FRU04","Földieper (szamóca)"]
["IND01","Szójabab","Nem","Nem","Nem",0.06,1.88,1.94,null,null,null,0.06,1.78,0.1,1.9400000000000002,null,null,null,null,null,null,null,null,null,null,null,null,9,"Egyéb növények","Szójabab","IND01","Szójabab"]
["IND09","Földimogyoró","Nem","Nem","Nem",0.06,1.25,1.31,null,null,null,0.06,1.1499999999999999,0.1,1.31,null,null,null,null,null,null,null,null,null,null,null,null,9,"Egyéb növények","Földimogyoró","IND09","Földimogyoró"]
["IND11","Fehér mustár","Nem","Igen","Igen",0.06,1.75,1.81,1.75,1.75,null,0.06,1.65,0.1,1.81,null,1.75,1.65,0.1,{"$f":"S42+R42","v":1.75},null,null,null,null,null,null,null,9,"Egyéb növények","Mustár","IND11","Fehér mustár"]
["IND12","Fekete mustár","Nem","Igen","Igen",0.06,1.75,1.81,1.75,1.75,null,0.06,1.65,0.1,1.81,null,1.75,1.65,0.1,{"$f":"S43+R43","v":1.75},null,null,null,null,null,null,null,9,"Egyéb növények","Mustár","IND12","Fekete mustár"]
["IND14","Mák","Nem","Igen","Igen",0.06,1.88,1.94,1.88,1.88,null,0.06,1.78,0.1,1.9400000000000002,null,1.88,1.78,0.1,{"$f":"S44+R44","v":1.8800000000000001},null,null,null,null,null,null,null,9,"Egyéb növények","Mák","IND14","Mák"]
["IND15","Retek","Nem","Nem","Nem",0.06,1.88,1.94,null,null,null,0.06,1.78,0.1,1.9400000000000002,null,null,null,null,null,null,null,null,null,null,null,null,9,"Egyéb növények","Retek","IND15","Retek"]
["IND16","Olajretek","Nem","Nem","Nem",0.06,1.56,1.62,null,null,null,0.06,1.46,0.1,1.62,null,null,null,null,null,null,null,null,null,null,null,null,9,"Egyéb növények","Retek","IND16","Olajretek"]
["IND24","Hibrid napraforgó","Nem","Nem","Igen",0.06,1.75,1.81,null,1.75,null,0.06,1.65,0.1,1.81,null,null,1.65,0.1,{"$f":"S47+R47","v":1.75},null,null,null,null,null,null,null,9,"Egyéb növények","Napraforgó","IND24","Hibrid napraforgó"]
["KAL19","Tavaszi zab","Nem","Nem","Igen",0.06,0.63,0.69,null,0.5,null,0.06,0.53,0.1,0.69000000000000006,null,null,0.4,0.1,{"$f":"S48+R48","v":0.5},null,null,null,null,null,null,null,9,"Egyéb növények","Zab ","KAL19","Tavaszi zab"]
["KAL20","Őszi zab","Nem","Igen","Igen",0.06,0.63,0.69,0.38,0.5,null,0.06,0.53,0.1,0.69000000000000006,null,0.38,0.4,0.1,{"$f":"S49+R49","v":0.5},null,null,null,null,null,null,null,9,"Egyéb növények","Zab ","KAL20","Őszi zab"]
["KAL23","Csemegekukorica","Nem","Nem","Igen",0.06,1.88,1.94,null,1.88,null,0.06,1.78,0.1,1.9400000000000002,null,null,1.78,0.1,{"$f":"S50+R50","v":1.8800000000000001},null,null,null,null,null,null,null,9,"Egyéb növények","Kukorica","KAL23","Csemegekukorica"]
["KAL25","Hibrid kukorica","Nem","Nem","Igen",0.06,1.88,1.94,null,1.88,null,0.06,1.78,0.1,1.9400000000000002,null,null,1.78,0.1,{"$f":"S51+R51","v":1.8800000000000001},null,null,null,null,null,null,null,9,"Egyéb növények","Kukorica","KAL25","Hibrid kukorica"]
["PIL01","Cukorborsó","Nem","Nem","Nem",0.06,1.88,1.94,null,null,null,0.06,1.78,0.1,1.9400000000000002,null,null,null,null,null,null,null,null,null,null,null,null,9,"Egyéb növények","Borsó","PIL01","Cukorborsó"]
["PIL02","Mezei borsó","Nem","Nem","Nem",0.06,1.56,1.62,null,null,null,0.06,1.46,0.1,1.62,null,null,null,null,null,null,null,null,null,null,null,null,9,"Egyéb növények","Borsó","PIL02","Mezei borsó"]
["PIL03","Őszi takarmányborsó","Nem","Igen","Nem",0.06,1.56,1.62,0.69,null,null,0.06,1.46,0.1,1.62,null,0.69,null,null,null,null,null,null,null,null,null,null,9,"Egyéb növények","Borsó","PIL03","Őszi takarmányborsó"]
["PIL04","Őszi zöldborsó","Nem","Igen","Nem",0.06,1.88,1.94,0.69,null,null,0.06,1.78,0.1,1.9400000000000002,null,0.69,null,null,null,null,null,null,null,null,null,null,9,"Egyéb növények","Borsó","PIL04","Őszi zöldborsó"]
["PIL05","Szárazborsó (Sárgaborsó)","Nem","Nem","Nem",0.06,1.56,1.62,null,null,null,0.06,1.46,0.1,1.62,null,null,null,null,null,null,null,null,null,null,null,null,9,"Egyéb növények","Borsó","PIL05","Szárazborsó (Sárgaborsó)"]
["PIL06","Tavaszi takarmányborsó","Nem","Nem","Igen",0.06,1.56,1.62,null,0.69,null,0.06,1.46,0.1,1.62,null,null,0.59,0.1,{"$f":"S57+R57","v":0.69},null,null,null,null,null,null,null,9,"Egyéb növények","Borsó","PIL06","Tavaszi takarmányborsó"]
["PIL07","Tavaszi zöldborsó","Nem","Nem","Igen",0.06,1.88,1.94,null,0.69,null,0.06,1.78,0.1,1.9400000000000002,null,null,0.59,0.1,{"$f":"S58+R58","v":0.69},null,null,null,null,null,null,null,9,"Egyéb növények","Borsó","PIL07","Tavaszi zöldborsó"]
["PIL09","Lóbab (Disznóbab)","Nem","Nem","Nem",0.06,1.88,1.94,null,null,null,0.06,1.78,0.1,1.9400000000000002,null,null,null,null,null,null,null,null,null,null,null,null,9,"Egyéb növények","Bab","PIL09","Lóbab (Disznóbab)"]
["PIL12","Szárazbab","Nem","Nem","Nem",0.06,1.56,1.62,null,null,null,0.06,1.46,0.1,1.62,null,null,null,null,null,null,null,null,null,null,null,null,9,"Egyéb növények","Bab","PIL12","Szárazbab"]
["PIL13","Zöldbab","Nem","Nem","Nem",0.06,1.88,1.94,null,null,null,0.06,1.78,0.1,1.9400000000000002,null,null,null,null,null,null,null,null,null,null,null,null,9,"Egyéb növények","Bab","PIL13","Zöldbab"]
["PIL24","Lencse ","Nem","Nem","Nem",0.06,1.88,1.94,null,null,null,0.06,1.78,0.1,1.9400000000000002,null,null,null,null,null,null,null,null,null,null,null,null,9,"Egyéb növények","Lencse ","PIL24","Lencse "]
["RIZ03","Rizs","Nem","Nem","Nem",0.06,1.25,1.31,null,null,null,0.06,1.1499999999999999,0.1,1.31,null,null,null,null,null,null,null,null,null,null,null,null,9,"Egyéb növények","Rizs","RIZ03","Rizs"]
["VEG01","Karfiol","Nem","Nem","Nem",0.06,1.88,1.94,null,null,null,0.06,1.78,0.1,1.9400000000000002,null,null,null,null,null,null,null,null,null,null,null,null,5,"Zöltségek","Karfiol","VEG01","Karfiol"]
["VEG02","Brokkoli","Nem","Nem","Nem",0.06,1.56,1.62,null,null,null,0.06,1.46,0.1,1.62,null,null,null,null,null,null,null,null,null,null,null,null,5,"Zöltségek","Brokkoli","VEG02","Brokkoli"]
["VEG04","Fejes káposzta","Nem","Nem","Nem",0.06,1.88,1.94,null,null,null,0.06,1.78,0.1,1.9400000000000002,null,null,null,null,null,null,null,null,null,null,null,null,5,"Zöltségek","Káposzta","VEG04","Fejes káposzta"]
["VEG05","Kelkáposzta","Nem","Nem","Nem",0.06,1.88,1.94,null,null,null,0.06,1.78,0.1,1.9400000000000002,null,null,null,null,null,null,null,null,null,null,null,null,5,"Zöltségek","Káposzta","VEG05","Kelkáposzta"]
["VEG06","Vöröskáposzta","Nem","Nem","Nem",0.06,1.88,1.94,null,null,null,0.06,1.78,0.1,1.9400000000000002,null,null,null,null,null,null,null,null,null,null,null,null,5,"Zöltségek","Káposzta","VEG06","Vöröskáposzta"]
["VEG10","Zeller","Nem","Nem","Nem",0.06,0.63,0.69,null,null,null,0.06,0.53,0.1,0.69000000000000006,null,null,null,null,null,null,null,null,null,null,null,null,5,"Zöltségek","Zeller","VEG10","Zeller"]
["VEG14","Csemegehagyma","Nem",{"$f":"IF(I70<>0,\"Igen\",\"Nem\")","v":"Nem"},{"$f":"IF(J70<>0,\"Igen\",\"Nem\")","v":"Nem"},0.06,1.25,{"$f":"F70+G70","v":1.31},null,null,null,0.06,1.1499999999999999,0.1,1.31,null,null,null,null,null,null,null,null,null,null,null,null,5,"Zöltségek","Hagyma",{"$f":"A70","v":"VEG14"},{"$f":"B70","v":"Csemegehagyma"}]
["VEG15","Őszi vöröshagyma","Nem","Nem","Nem",0.06,1.25,1.31,null,null,null,0.06,1.1499999999999999,0.1,{"$f":"L71+M71+N71","v":1.31},null,null,null,null,null,null,null,null,null,null,null,null,5,"Zöltségek","Hagyma","VEG15","Őszi vöröshagyma"]
["VEG21","Sóska","Nem","Nem","Nem",0.06,1.25,1.31,null,null,null,0.06,1.1499999999999999,0.1,1.31,null,null,null,null,null,null,null,null,null,null,null,null,5,"Zöltségek","Sóska","VEG21","Sóska"]
["VEG22","Spenót","Nem","Nem","Nem",0.06,1.25,1.31,null,null,null,0.06,1.1499999999999999,0.1,1.31,null,null,null,null,null,null,null,null,null,null,null,null,5,"Zöltségek","Spenót","VEG22","Spenót"]
["VEG23","Spárga","Nem","Nem","Nem",0.06,2.5,2.56,null,null,null,0.06,2.4,0.1,2.56,null,null,null,null,null,null,null,null,null,null,null,null,5,"Zöltségek","Spárga","VEG23","Spárga"]
["VEG26","Petrezselyem gyökér (fehérrépa)","Nem","Nem","Nem",0.06,0.63,0.69,null,null,null,0.06,0.53,0.1,0.69000000000000006,null,null,null,null,null,null,null,null,null,null,null,null,5,"Zöltségek","Petrezselyem","VEG26","Petrezselyem gyökér (fehérrépa)"]
["VEG27","Petrezselyem levél","Nem","Nem","Nem",0.06,0.63,0.69,null,null,null,0.06,0.53,0.1,0.69000000000000006,null,null,null,null,null,null,null,null,null,null,null,null,5,"Zöltségek","Petrezselyem","VEG27","Petrezselyem levél"]
["VEG33","Paradicsom","Nem","Nem","Nem",0.06,3.75,3.81,null,null,null,0.06,3.65,0.1,3.81,null,null,null,null,null,null,null,null,null,null,null,null,5,"Zöltségek","Paradicsom","VEG33","Paradicsom"]
["VEG34","Uborka","Nem","Nem","Nem",0.06,5,5.0599999999999996,null,null,null,0.06,4.9000000000000004,0.1,5.0599999999999996,null,null,null,null,null,null,null,null,null,null,null,null,5,"Zöltségek","Uborka","VEG34","Uborka"]
["VEG36","Főzőtök","Nem","Nem","Nem",0.06,1.88,1.94,null,null,null,0.06,1.78,0.1,1.9400000000000002,null,null,null,null,null,null,null,null,null,null,null,null,5,"Zöltségek","Tök","VEG36","Főzőtök"]
["VEG37","Sütőtök","Nem","Nem","Nem",0.06,1.88,1.94,null,null,null,0.06,1.78,0.1,1.9400000000000002,null,null,null,null,null,null,null,null,null,null,null,null,5,"Zöltségek","Tök","VEG37","Sütőtök"]
["VEG38","Káposztatök","Nem","Nem","Nem",0.06,1.88,1.94,null,null,null,0.06,1.78,0.1,1.9400000000000002,null,null,null,null,null,null,null,null,null,null,null,null,5,"Zöltségek","Tök","VEG38","Káposztatök"]
["VEG39","Olajtök","Nem","Nem","Nem",0.06,2.19,2.25,null,null,null,0.06,2.09,0.1,2.25,null,null,null,null,null,null,null,null,null,null,null,null,5,"Zöltségek","Tök","VEG39","Olajtök"]
["VEG40","Csillagtök/patiszon","Nem","Nem","Nem",0.06,6.25,6.31,null,null,null,0.06,6.15,0.1,6.31,null,null,null,null,null,null,null,null,null,null,null,null,5,"Zöltségek","Tök","VEG40","Csillagtök/patiszon"]
["VEG41","Spárgatök","Nem","Nem","Nem",0.06,1.88,1.94,null,null,null,0.06,1.78,0.1,1.9400000000000002,null,null,null,null,null,null,null,null,null,null,null,null,5,"Zöltségek","Tök","VEG41","Spárgatök"]
["VEG42","Cukkini","Nem","Nem","Nem",0.06,1.56,1.62,null,null,null,0.06,1.46,0.1,1.62,null,null,null,null,null,null,null,null,null,null,null,null,5,"Zöltségek","Tök","VEG42","Cukkini"]
["VEG43","Paprika","Nem","Nem","Nem",0.06,6.25,6.31,null,null,null,0.06,6.15,0.1,6.31,null,null,null,null,null,null,null,null,null,null,null,null,5,"Zöltségek","Paprika","VEG43","Paprika"]
["VEG44","Fűszerpaprika","Nem","Nem","Nem",0.06,6.25,6.31,null,null,null,0.06,6.15,0.1,6.31,null,null,null,null,null,null,null,null,null,null,null,null,5,"Zöltségek","Paprika","VEG44","Fűszerpaprika"]
["VEG45","Sárgarépa","Nem","Nem","Nem",0.06,0.63,0.69,null,null,null,0.06,0.53,0.1,0.69000000000000006,null,null,null,null,null,null,null,null,null,null,null,null,5,"Zöltségek","Sárgarépa","VEG45","Sárgarépa"]
["VEG46","Cékla","Nem","Nem","Nem",0.06,0.63,0.69,null,null,null,0.06,0.53,0.1,0.69000000000000006,null,null,null,null,null,null,null,null,null,null,null,null,5,"Zöltségek","Cékla","VEG46","Cékla"]
["VEG48","Torma","Nem","Nem","Nem",0.06,0.63,0.69,null,null,null,0.06,0.53,0.1,0.69000000000000006,null,null,null,null,null,null,null,null,null,null,null,null,5,"Zöltségek","Torma","VEG48","Torma"]
["VEG49","Pasztinák","Nem","Nem","Nem",0.06,1.88,1.94,null,null,null,0.06,1.78,0.1,1.9400000000000002,null,null,null,null,null,null,null,null,null,null,null,null,5,"Zöltségek","Pasztinák","VEG49","Pasztinák"]
["VEG53","Tavaszi vöröshagyma","Nem","Nem","Igen",0.06,1.57,1.6300000000000001,null,0.63,null,0.06,1.47,0.1,1.6300000000000001,null,null,0.53,0.1,0.63,null,null,null,null,null,null,null,5,"Zöltségek","Hagyma","VEG53","Tavaszi vöröshagyma"]
["FRU05","Ribiszke","Nem","Nem","Nem",0.63,10,10.63,null,null,null,0.63,9.9,0.1,10.63,null,null,null,null,null,null,null,null,null,null,null,null,3,"Gyömölcsösök - gyümölcsök","Ribiszke","FRU05","Ribiszke"]
["FRU08","Málna","Nem","Nem","Nem",0.63,10,10.63,null,null,null,0.63,9.9,0.1,10.63,null,null,null,null,null,null,null,null,null,null,null,null,3,"Gyömölcsösök - gyümölcsök","Málna","FRU08","Málna"]
["FRU09","Piszke","Nem","Nem","Nem",0.63,10,10.63,null,null,null,0.63,9.9,0.1,10.63,null,null,null,null,null,null,null,null,null,null,null,null,3,"Gyömölcsösök - gyümölcsök","Piszke (köszméte)","FRU09","Piszke"]
["FRU15","Fekete bodza","Nem","Nem","Nem",0.63,10,10.63,null,null,null,0.63,9.9,0.1,10.63,null,null,null,null,null,null,null,null,null,null,null,null,3,"Gyömölcsösök - gyümölcsök","Bodza","FRU15","Fekete bodza"]
["FRU16","Egyéb bodza","Nem","Nem","Nem",0.63,10,10.63,null,null,null,0.63,9.9,0.1,10.63,null,null,null,null,null,null,null,null,null,null,null,null,3,"Gyömölcsösök - gyümölcsök","Bodza","FRU16","Egyéb bodza"]
["FRU17","Áfonya","Nem","Nem","Igen",0.63,10,10.63,null,1.88,null,0.63,9.9,0.1,10.63,null,null,1.78,0.1,{"$f":"S98+R98","v":1.8800000000000001},null,null,null,null,null,null,null,3,"Gyömölcsösök - gyümölcsök","Áfonya","FRU17","Áfonya"]
["HAG03","Hagyományos gyümölcsös őszibarack","Nem","Nem","Igen",0.63,10,10.63,null,5,null,0.63,9.9,0.1,10.63,null,null,4.9000000000000004,0.1,{"$f":"S99+R99","v":5},null,null,null,null,null,null,null,3,"Gyömölcsösök - gyümölcsök","Hagyományos gyümölcsösök","HAG03","Hagyományos gyümölcsös őszibarack"]
["HAG04","Hagyományos gyümölcsös kajszibarack (sárgabarack)","Nem","Nem","Nem",0.63,10,10.63,null,null,null,0.63,9.9,0.1,10.63,null,null,null,null,null,null,null,null,null,null,null,null,3,"Gyömölcsösök - gyümölcsök","Hagyományos gyümölcsösök","HAG04","Hagyományos gyümölcsös kajszibarack (sárgabarack)"]
["HAG06","Hagyományos gyümölcsös szilva","Nem","Nem","Nem",0.63,10,10.63,null,null,null,0.63,9.9,0.1,10.63,null,null,null,null,null,null,null,null,null,null,null,null,3,"Gyömölcsösök - gyümölcsök","Hagyományos gyümölcsösök","HAG06","Hagyományos gyümölcsös szilva"]
["HAG07","Hagyományos gyümölcsös naspolya","Nem","Nem","Nem",0.63,10,10.63,null,null,null,0.63,9.9,0.1,10.63,null,null,null,null,null,null,null,null,null,null,null,null,3,"Gyömölcsösök - gyümölcsök","Hagyományos gyümölcsösök","HAG07","Hagyományos gyümölcsös naspolya"]
["HAG08","Hagyományos gyümölcsös dió","Nem","Nem","Nem",0.63,10,10.63,null,null,null,0.63,9.9,0.1,10.63,null,null,null,null,null,null,null,null,null,null,null,null,3,"Gyömölcsösök - gyümölcsök","Hagyományos gyümölcsösök","HAG08","Hagyományos gyümölcsös dió"]
["HAG09","Hagyományos gyümölcsös mogyoró","Nem","Nem","Nem",0.63,10,10.63,null,null,null,0.63,9.9,0.1,10.63,null,null,null,null,null,null,null,null,null,null,null,null,3,"Gyömölcsösök - gyümölcsök","Hagyományos gyümölcsösök","HAG09","Hagyományos gyümölcsös mogyoró"]
["HAG10","Hagyományos gyümölcsös mandula","Nem","Nem","Nem",0.63,10,10.63,null,null,null,0.63,9.9,0.1,10.63,null,null,null,null,null,null,null,null,null,null,null,null,3,"Gyömölcsösök - gyümölcsök","Hagyományos gyümölcsösök","HAG10","Hagyományos gyümölcsös mandula"]
["HAG16","Hagyományos gyümölcsös meggy","Nem","Nem","Nem",0.63,10,10.63,null,null,null,0.63,9.9,0.1,10.63,null,null,null,null,null,null,null,null,null,null,null,null,3,"Gyömölcsösök - gyümölcsök","Hagyományos gyümölcsösök","HAG16","Hagyományos gyümölcsös meggy"]
["HAG17","Hagyományos gyümölcsös cseresznye","Nem","Nem","Nem",0.63,10,10.63,null,null,null,0.63,9.9,0.1,10.63,null,null,null,null,null,null,null,null,null,null,null,null,3,"Gyömölcsösök - gyümölcsök","Hagyományos gyümölcsösök","HAG17","Hagyományos gyümölcsös cseresznye"]
["HAG18","Hagyományos gyümölcsös birs","Nem","Nem","Nem",0.63,10,10.63,null,null,null,0.63,9.9,0.1,10.63,null,null,null,null,null,null,null,null,null,null,null,null,3,"Gyömölcsösök - gyümölcsök","Hagyományos gyümölcsösök","HAG18","Hagyományos gyümölcsös birs"]
["HAG19","Hagyományos gyümölcsös nektarin","Nem","Nem","Nem",0.63,10,10.63,null,null,null,0.63,9.9,0.1,10.63,null,null,null,null,null,null,null,null,null,null,null,null,3,"Gyömölcsösök - gyümölcsök","Hagyományos gyümölcsösök","HAG19","Hagyományos gyümölcsös nektarin"]
["PIL29","Csicseriborsó","Nem","Nem","Nem",0.06,1.88,1.94,null,null,null,0.06,1.78,0.1,1.9400000000000002,null,null,null,null,null,null,null,null,null,null,null,null,9,"Egyéb növények","Csicseriborsó","PIL29","Csicseriborsó"]
["ULT03","Őszibarack","Nem","Nem","Nem",0.63,10,10.63,null,null,null,0.63,9.9,0.1,10.63,null,null,null,null,null,null,null,null,null,null,null,null,3,"Gyömölcsösök - gyümölcsök","Gyümölcsfák","ULT03","Őszibarack"]
["ULT04","Kajszibarack (sárgabarack)","Nem","Nem","Nem",0.63,10,10.63,null,null,null,0.63,9.9,0.1,10.63,null,null,null,null,null,null,null,null,null,null,null,null,3,"Gyömölcsösök - gyümölcsök","Gyümölcsfák","ULT04","Kajszibarack (sárgabarack)"]
["ULT05","Nektarin","Nem","Nem","Nem",0.63,10,10.63,null,null,null,0.63,9.9,0.1,10.63,null,null,null,null,null,null,null,null,null,null,null,null,3,"Gyömölcsösök - gyümölcsök","Gyümölcsfák","ULT05","Nektarin"]
["ULT06","Szilva","Nem","Nem","Nem",0.63,10,10.63,null,null,null,0.63,9.9,0.1,10.63,null,null,null,null,null,null,null,null,null,null,null,null,3,"Gyömölcsösök - gyümölcsök","Gyümölcsfák","ULT06","Szilva"]
["ULT07","Naspolya","Nem","Nem","Nem",0.63,10,10.63,null,null,null,0.63,9.9,0.1,10.63,null,null,null,null,null,null,null,null,null,null,null,null,3,"Gyömölcsösök - gyümölcsök","Gyümölcsfák","ULT07","Naspolya"]
["ULT08","Dió","Nem","Nem","Nem",0.63,10,10.63,null,null,null,0.63,9.9,0.1,10.63,null,null,null,null,null,null,null,null,null,null,null,null,3,"Gyömölcsösök - gyümölcsök","Gyümölcsfák","ULT08","Dió"]
["ULT09","Mogyoró","Nem","Nem","Nem",0.63,10,10.63,null,null,null,0.63,9.9,0.1,10.63,null,null,null,null,null,null,null,null,null,null,null,null,3,"Gyömölcsösök - gyümölcsök","Gyümölcsfák","ULT09","Mogyoró"]
["ULT10","Mandula","Nem","Nem","Nem",0.63,10,10.63,null,null,null,0.63,9.9,0.1,10.63,null,null,null,null,null,null,null,null,null,null,null,null,3,"Gyömölcsösök - gyümölcsök","Gyümölcsfák","ULT10","Mandula"]
["ULT16","Meggy","Nem","Nem","Nem",0.63,10,10.63,null,null,null,0.63,9.9,0.1,10.63,null,null,null,null,null,null,null,null,null,null,null,null,3,"Gyömölcsösök - gyümölcsök","Gyümölcsfák","ULT16","Meggy"]
["ULT17","Cseresznye","Nem","Nem","Nem",0.63,10,10.63,null,null,null,0.63,9.9,0.1,10.63,null,null,null,null,null,null,null,null,null,null,null,null,3,"Gyömölcsösök - gyümölcsök","Gyümölcsfák","ULT17","Cseresznye"]
["ULT18","Birs","Nem","Nem","Igen",0.63,10,10.63,null,1.88,null,0.63,9.9,0.1,10.63,null,null,1.78,0.1,{"$f":"S121+R121","v":1.8800000000000001},null,null,null,null,null,null,null,3,"Gyömölcsösök - gyümölcsök","Gyümölcsfák","ULT18","Birs"]
["ABE01","Abesszin (etiópiai) mustár","Nem","Igen","Igen",0.06,1.75,1.81,1.75,1.75,null,0.06,1.65,0.1,1.81,null,1.75,1.65,0.1,{"$f":"S122+R122","v":1.75},null,null,null,null,null,null,null,4,"Fűszernövények","Abesszin (etiópiai) mustár","ABE01","Abesszin (etiópiai) mustár"]
["AGF02","Angyalgyökér","Nem","Nem","Nem",0.1,0.99,1.0900000000000001,null,null,null,0.1,0.89,0.1,1.0900000000000001,null,null,null,null,null,null,null,null,null,null,null,null,4,"Fűszernövények","Aromás-, gyógy- és fűszernövények","AGF02","Angyalgyökér"]
["AGF03","Kamilla","Nem","Nem","Nem",0.1,2.98,3.08,null,null,null,0.1,2.88,0.1,3.08,null,null,null,null,null,null,null,null,null,null,null,null,4,"Fűszernövények","Aromás-, gyógy- és fűszernövények","AGF03","Kamilla"]
["AGF05","Digitalis","Nem","Nem","Nem",0.1,2.98,3.08,null,null,null,0.1,2.88,0.1,3.08,null,null,null,null,null,null,null,null,null,null,null,null,4,"Fűszernövények","Aromás-, gyógy- és fűszernövények","AGF05","Digitalis"]
["AGF06","Tárnics","Nem","Nem","Nem",0.1,0.99,1.0900000000000001,null,null,null,0.1,0.89,0.1,1.0900000000000001,null,null,null,null,null,null,null,null,null,null,null,null,4,"Fűszernövények","Aromás-, gyógy- és fűszernövények","AGF06","Tárnics"]
["AGF07","Izsóp","Nem",{"$f":"IF(I127<>0,\"Igen\",\"Nem\")","v":"Nem"},{"$f":"IF(J127<>0,\"Igen\",\"Nem\")","v":"Nem"},0.1,2.98,{"$f":"F127+G127","v":3.08},null,null,null,0.1,2.88,0.1,3.08,null,null,null,null,null,null,null,null,null,null,null,null,4,"Fűszernövények","Aromás-, gyógy- és fűszernövények","AGF07","Izsóp"]
["AGF08","Jázmin","Nem","Nem","Nem",0.1,0.99,1.0900000000000001,null,null,null,0.1,0.89,0.1,{"$f":"L128+M128+N128","v":1.0900000000000001},null,null,null,null,null,null,null,null,null,null,null,null,4,"Fűszernövények","Aromás-, gyógy- és fűszernövények","AGF08","Jázmin"]
["AGF09","Levendula","Nem","Nem","Nem",0.1,2.98,3.08,null,null,null,0.1,2.88,0.1,3.08,null,null,null,null,null,null,null,null,null,null,null,null,4,"Fűszernövények","Aromás-, gyógy- és fűszernövények","AGF09","Levendula"]
["AGF10","Majoranna","Nem","Nem","Nem",0.1,0.99,1.0900000000000001,null,null,null,0.1,0.89,0.1,1.0900000000000001,null,null,null,null,null,null,null,null,null,null,null,null,4,"Fűszernövények","Aromás-, gyógy- és fűszernövények","AGF10","Majoranna"]
["AGF11","Menta","Nem","Nem","Nem",0.1,2.98,3.08,null,null,null,0.1,2.88,0.1,3.08,null,null,null,null,null,null,null,null,null,null,null,null,4,"Fűszernövények","Aromás-, gyógy- és fűszernövények","AGF11","Menta"]
["AGF12","Meténg","Nem","Nem","Nem",0.1,0.5,0.6,null,null,null,0.1,0.4,0.1,0.6,null,null,null,null,null,null,null,null,null,null,null,null,4,"Fűszernövények","Aromás-, gyógy- és fűszernövények","AGF12","Meténg"]
["AGF13","Utifű (Psyllium)","Nem","Nem","Nem",0.1,0.99,1.0900000000000001,null,null,null,0.1,0.89,0.1,1.0900000000000001,null,null,null,null,null,null,null,null,null,null,null,null,4,"Fűszernövények","Aromás-, gyógy- és fűszernövények","AGF13","Utifű (Psyllium)"]
["AGF14","Sáfrány","Nem","Nem","Nem",0.1,1.99,2.09,null,null,null,0.1,1.89,0.1,2.09,null,null,null,null,null,null,null,null,null,null,null,null,4,"Fűszernövények","Aromás-, gyógy- és fűszernövények",{"$f":"A134","v":"AGF14"},{"$f":"B134","v":"Sáfrány"}]
["AGF15","Körömvirág","Nem","Nem","Nem",0.1,2.98,3.08,null,null,null,0.1,2.88,0.1,3.08,null,null,null,null,null,null,null,null,null,null,null,null,4,"Fűszernövények","Aromás-, gyógy- és fűszernövények","AGF15","Körömvirág"]
["AGF17","Macskagyökérfű","Nem","Nem","Nem",0.1,0.99,1.0900000000000001,null,null,null,0.1,0.89,0.1,1.0900000000000001,null,null,null,null,null,null,null,null,null,null,null,null,4,"Fűszernövények","Aromás-, gyógy- és fűszernövények","AGF17","Macskagyökérfű"]
["AGF18","Tárkony","Nem","Nem","Nem",0.1,2.98,3.08,null,null,null,0.1,2.88,0.1,3.08,null,null,null,null,null,null,null,null,null,null,null,null,4,"Fűszernövények","Aromás-, gyógy- és fűszernövények","AGF18","Tárkony"]
["AGF19","Fűszerkömény","Nem","Nem","Nem",0.1,2.98,3.08,null,null,null,0.1,2.88,0.1,3.08,null,null,null,null,null,null,null,null,null,null,null,null,4,"Fűszernövények","Aromás-, gyógy- és fűszernövények","AGF19","Fűszerkömény"]
["AGF20","Citromfű","Nem","Nem","Nem",0.1,2.98,3.08,null,null,null,0.1,2.88,0.1,3.08,null,null,null,null,null,null,null,null,null,null,null,null,4,"Fűszernövények","Aromás-, gyógy- és fűszernövények","AGF20","Citromfű"]
["AGF21","Bazsalikom","Nem","Nem","Nem",0.1,2.98,3.08,null,null,null,0.1,2.88,0.1,3.08,null,null,null,null,null,null,null,null,null,null,null,null,4,"Fűszernövények","Aromás-, gyógy- és fűszernövények","AGF21","Bazsalikom"]
["AGF22","Rozmaring","Nem","Nem","Nem",0.1,2.98,3.08,null,null,null,0.1,2.88,0.1,3.08,null,null,null,null,null,null,null,null,null,null,null,null,4,"Fűszernövények","Aromás-, gyógy- és fűszernövények","AGF22","Rozmaring"]
["AGF23","Lestyán","Nem","Nem","Nem",0.1,2.98,3.08,null,null,null,0.1,2.88,0.1,3.08,null,null,null,null,null,null,null,null,null,null,null,null,4,"Fűszernövények","Aromás-, gyógy- és fűszernövények","AGF23","Lestyán"]
["AGF24","Szöszös ökörfarkkóró","Nem","Nem","Nem",0.1,0.99,1.0900000000000001,null,null,null,0.1,0.89,0.1,1.0900000000000001,null,null,null,null,null,null,null,null,null,null,null,null,4,"Fűszernövények","Aromás-, gyógy- és fűszernövények","AGF24","Szöszös ökörfarkkóró"]
["AGF25","Anyarozs","Nem","Nem","Nem",0.1,2.98,3.08,null,null,null,0.1,2.88,0.1,3.08,null,null,null,null,null,null,null,null,null,null,null,null,4,"Fűszernövények","Aromás-, gyógy- és fűszernövények","AGF25","Anyarozs"]
["AGF26","Kapor","Nem","Nem","Nem",0.1,1.99,2.09,null,null,null,0.1,1.89,0.1,2.09,null,null,null,null,null,null,null,null,null,null,null,null,4,"Fűszernövények","Aromás-, gyógy- és fűszernövények","AGF26","Kapor"]
["AGF28","Ánizs","Nem","Nem","Nem",0.1,2.98,3.08,null,null,null,0.1,2.88,0.1,3.08,null,null,null,null,null,null,null,null,null,null,null,null,4,"Fűszernövények","Aromás-, gyógy- és fűszernövények","AGF28","Ánizs"]
["AGF29","Borsikafű","Nem","Nem","Nem",0.1,2.98,3.08,null,null,null,0.1,2.88,0.1,3.08,null,null,null,null,null,null,null,null,null,null,null,null,4,"Fűszernövények","Aromás-, gyógy- és fűszernövények","AGF29","Borsikafű"]
["AGF30","Koriander","Nem","Nem","Nem",0.1,0.99,1.0900000000000001,null,null,null,0.1,0.89,0.1,1.0900000000000001,null,null,null,null,null,null,null,null,null,null,null,null,4,"Fűszernövények","Aromás-, gyógy- és fűszernövények","AGF30","Koriander"]
["AGF31","Máriatövis","Nem","Nem","Nem",0.1,0.99,1.0900000000000001,null,null,null,0.1,0.89,0.1,1.0900000000000001,null,null,null,null,null,null,null,null,null,null,null,null,4,"Fűszernövények","Aromás-, gyógy- és fűszernövények","AGF31","Máriatövis"]
["AGF32","Kerti kakukkfű","Nem","Nem","Nem",0.1,0.99,1.0900000000000001,null,null,null,0.1,0.89,0.1,1.0900000000000001,null,null,null,null,null,null,null,null,null,null,null,null,4,"Fűszernövények","Aromás-, gyógy- és fűszernövények","AGF32","Kerti kakukkfű"]
["AGF33","Sáfrányos szeklice","Nem","Nem","Nem",0.1,2.98,3.08,null,null,null,0.1,2.88,0.1,3.08,null,null,null,null,null,null,null,null,null,null,null,null,4,"Fűszernövények","Aromás-, gyógy- és fűszernövények","AGF33","Sáfrányos szeklice"]
["AGF35","Orvosi zsálya","Nem","Nem","Nem",0.1,0.99,1.0900000000000001,null,null,null,0.1,0.89,0.1,1.0900000000000001,null,null,null,null,null,null,null,null,null,null,null,null,4,"Fűszernövények","Aromás-, gyógy- és fűszernövények","AGF35","Orvosi zsálya"]
["AGF36","Kerti ruta","Nem","Nem","Nem",0.1,0.99,1.0900000000000001,null,null,null,0.1,0.89,0.1,1.0900000000000001,null,null,null,null,null,null,null,null,null,null,null,null,4,"Fűszernövények","Aromás-, gyógy- és fűszernövények","AGF36","Kerti ruta"]
["AGF37","Ánizsizsóp","Nem","Nem","Nem",0.1,0.99,1.0900000000000001,null,null,null,0.1,0.89,0.1,1.0900000000000001,null,null,null,null,null,null,null,null,null,null,null,null,4,"Fűszernövények","Aromás-, gyógy- és fűszernövények","AGF37","Ánizsizsóp"]
["AGF38","Ánizsmenta","Nem","Nem","Nem",0.1,0.99,1.0900000000000001,null,null,null,0.1,0.89,0.1,1.0900000000000001,null,null,null,null,null,null,null,null,null,null,null,null,4,"Fűszernövények","Aromás-, gyógy- és fűszernövények","AGF38","Ánizsmenta"]
["AGF39","Bíbor kasvirág (Echinacea)","Nem","Nem","Nem",0.1,0.99,1.0900000000000001,null,null,null,0.1,0.89,0.1,1.0900000000000001,null,null,null,null,null,null,null,null,null,null,null,null,4,"Fűszernövények","Aromás-, gyógy- és fűszernövények","AGF39","Bíbor kasvirág (Echinacea)"]
["AGF40","Cickafark","Nem","Nem","Nem",0.1,0.99,1.0900000000000001,null,null,null,0.1,0.89,0.1,1.0900000000000001,null,null,null,null,null,null,null,null,null,null,null,null,4,"Fűszernövények","Aromás-, gyógy- és fűszernövények","AGF40","Cickafark"]
["AGF41","Oregánó (szurokfű)","Nem","Nem","Nem",0.1,0.99,1.0900000000000001,null,null,null,0.1,0.89,0.1,1.0900000000000001,null,null,null,null,null,null,null,null,null,null,null,null,4,"Fűszernövények","Aromás-, gyógy- és fűszernövények","AGF41","Oregánó (szurokfű)"]
["AGF44","Borágó","Nem","Nem","Nem",0.1,0.99,1.0900000000000001,null,null,null,0.1,0.89,0.1,1.0900000000000001,null,null,null,null,null,null,null,null,null,null,null,null,4,"Fűszernövények","Aromás-, gyógy- és fűszernövények","AGF44","Borágó"]
["AGF47","Gyermekláncfű","Nem","Nem","Nem",0.1,0.99,1.0900000000000001,null,null,null,0.1,0.89,0.1,1.0900000000000001,null,null,null,null,null,null,null,null,null,null,null,null,4,"Fűszernövények","Aromás-, gyógy- és fűszernövények","AGF47","Gyermekláncfű"]
["AGF48","Jázminpakóca (stevia)","Nem","Nem","Nem",0.1,0.99,1.0900000000000001,null,null,null,0.1,0.89,0.1,1.0900000000000001,null,null,null,null,null,null,null,null,null,null,null,null,4,"Fűszernövények","Aromás-, gyógy- és fűszernövények","AGF48","Jázminpakóca (stevia)"]
["DBU01","Dohány- Burley","Nem","Nem","Nem",0.1,9.94,10.039999999999999,null,null,null,0.1,9.84,0.1,10.039999999999999,null,null,null,null,null,null,null,null,null,null,null,null,9,"Egyéb növények","Dohány","DBU01","Dohány- Burley"]
["DVI02","Dohány- Virginia","Nem","Nem","Nem",0.1,9.94,10.039999999999999,null,null,null,0.1,9.84,0.1,10.039999999999999,null,null,null,null,null,null,null,null,null,null,null,null,9,"Egyéb növények","Dohány","DVI02","Dohány- Virginia"]
["EFU01","Energiafű","Nem","Igen","Igen",0.1,2.98,3.08,2.98,2.98,null,0.1,2.88,0.1,3.08,null,2.98,2.88,0.1,{"$f":"S164+R164","v":2.98},null,null,null,null,null,null,null,9,"Egyéb növények","Energiafű","EFU01","Energiafű"]
["EGY01","Egyéb szántóföldi termelt növény","Nem","Nem","Nem",0.1,2.98,3.08,null,null,null,0.1,2.88,0.1,3.08,null,null,null,null,null,null,null,null,null,null,null,null,9,"Egyéb növények","Egyéb termelt növény","EGY01","Egyéb szántóföldi termelt növény"]
["FOR01","Lucerna","Nem","Nem","Nem",0.1,0.5,0.6,null,null,null,0.1,0.4,0.1,0.6,null,null,null,null,null,null,null,null,null,null,null,null,9,"Egyéb növények","Lucerna","FOR01","Lucerna"]
["FOR02","Lucerna erjesztett takarmány","Nem","Nem","Nem",0.1,0.5,0.6,null,null,null,0.1,0.4,0.1,0.6,null,null,null,null,null,null,null,null,null,null,null,null,9,"Egyéb növények","Lucerna","FOR02","Lucerna erjesztett takarmány"]
["FOR03","Lucerna zöldtakarmány","Nem","Nem","Nem",0.1,0.5,0.6,null,null,null,0.1,0.4,0.1,0.6,null,null,null,null,null,null,null,null,null,null,null,null,9,"Egyéb növények","Lucerna","FOR03","Lucerna zöldtakarmány"]
["FOR04","Komlós lucerna","Nem","Nem","Nem",0.1,2.98,3.08,null,null,null,0.1,2.88,0.1,3.08,null,null,null,null,null,null,null,null,null,null,null,null,9,"Egyéb növények","Lucerna","FOR04","Komlós lucerna"]
["FOR05","Sárkerep lucerna","Nem","Nem","Nem",0.1,0.5,0.6,null,null,null,0.1,0.4,0.1,0.6,null,null,null,null,null,null,null,null,null,null,null,null,9,"Egyéb növények","Lucerna","FOR05","Sárkerep lucerna"]
["FOR06","Tarkavirágú lucerna","Nem","Nem","Nem",0.1,0.5,0.6,null,null,null,0.1,0.4,0.1,0.6,null,null,null,null,null,null,null,null,null,null,null,null,9,"Egyéb növények","Lucerna","FOR06","Tarkavirágú lucerna"]
["FOR09","Vöröshere","Nem","Nem","Nem",0.1,0.5,0.6,null,null,null,0.1,0.4,0.1,0.6,null,null,null,null,null,null,null,null,null,null,null,null,9,"Egyéb növények","Here","FOR09","Vöröshere"]
["FOR10","Bíborhere","Nem","Nem","Nem",0.1,0.5,0.6,null,null,null,0.1,0.4,0.1,0.6,null,null,null,null,null,null,null,null,null,null,null,null,9,"Egyéb növények","Here","FOR10","Bíborhere"]
["FOR11","Fehérhere","Nem","Nem","Nem",0.1,0.5,0.6,null,null,null,0.1,0.4,0.1,0.6,null,null,null,null,null,null,null,null,null,null,null,null,9,"Egyéb növények","Here","FOR11","Fehérhere"]
["FOR12","Korcshere (svédhere)","Nem","Nem","Nem",0.1,0.5,0.6,null,null,null,0.1,0.4,0.1,0.6,null,null,null,null,null,null,null,null,null,null,null,null,9,"Egyéb növények","Here","FOR12","Korcshere (svédhere)"]
["FOR13","Perzsahere (fonákhere)","Nem","Nem","Nem",0.1,0.5,0.6,null,null,null,0.1,0.4,0.1,0.6,null,null,null,null,null,null,null,null,null,null,null,null,9,"Egyéb növények","Here","FOR13","Perzsahere (fonákhere)"]
["FOR14","Alexandriai here","Nem","Nem","Nem",0.1,0.5,0.6,null,null,null,0.1,0.4,0.1,0.6,null,null,null,null,null,null,null,null,null,null,null,null,9,"Egyéb növények","Here","FOR14","Alexandriai here"]
["FOR15","Lódi lóhere","Nem","Nem","Nem",0.1,1.99,2.09,null,null,null,0.1,1.89,0.1,2.09,null,null,null,null,null,null,null,null,null,null,null,null,9,"Egyéb növények","Here","FOR15","Lódi lóhere"]
["FOR23","Sárgavirágú somkóró (orvosi somkóró)","Nem","Nem","Nem",0.1,0.99,1.0900000000000001,null,null,null,0.1,0.89,0.1,1.0900000000000001,null,null,null,null,null,null,null,null,null,null,null,null,9,"Egyéb növények","Somkóró","FOR23","Sárgavirágú somkóró (orvosi somkóró)"]
["FOR24","Fehérvirágú somkóró","Nem","Nem","Nem",0.1,0.5,0.6,null,null,null,0.1,0.4,0.1,0.6,null,null,null,null,null,null,null,null,null,null,null,null,9,"Egyéb növények","Somkóró","FOR24","Fehérvirágú somkóró"]
["FOR25","Takarmánybaltacim","Nem","Nem","Nem",0.1,0.5,0.6,null,null,null,0.1,0.4,0.1,0.6,null,null,null,null,null,null,null,null,null,null,null,null,9,"Egyéb növények","Takarmánybaltacim","FOR25","Takarmánybaltacim"]
["FOR27","Szarvaskerep","Nem","Nem","Nem",0.1,0.5,0.6,null,null,null,0.1,0.4,0.1,0.6,null,null,null,null,null,null,null,null,null,null,null,null,9,"Egyéb növények","Szarvaskerep","FOR27","Szarvaskerep"]
["FOR28","Nyúlszapuka","Nem","Nem","Nem",0.1,0.99,1.0900000000000001,null,null,null,0.1,0.89,0.1,1.0900000000000001,null,null,null,null,null,null,null,null,null,null,null,null,9,"Egyéb növények","Nyúlszapuka","FOR28","Nyúlszapuka"]
["FOR29","Szeradella","Nem","Nem","Nem",0.1,0.99,1.0900000000000001,null,null,null,0.1,0.89,0.1,1.0900000000000001,null,null,null,null,null,null,null,null,null,null,null,null,9,"Egyéb növények","Szeradella","FOR29","Szeradella"]
["FOR30","Koronás baltavirág","Nem","Nem","Nem",0.1,0.99,1.0900000000000001,null,null,null,0.1,0.89,0.1,1.0900000000000001,null,null,null,null,null,null,null,null,null,null,null,null,9,"Egyéb növények","Koronás baltavirág (vetőmag)","FOR30","Koronás baltavirág"]
["FOR32","Réparepce","Nem","Nem","Nem",0.1,1.99,2.09,null,null,null,0.1,1.89,0.1,2.09,null,null,null,null,null,null,null,null,null,null,null,null,9,"Egyéb növények","Réparepce","FOR32","Réparepce"]
["FOR33","Tifon","Nem","Nem","Nem",0.1,0.99,1.0900000000000001,null,null,null,0.1,0.89,0.1,1.0900000000000001,null,null,null,null,null,null,null,null,null,null,null,null,9,"Egyéb növények","Tifon","FOR33","Tifon"]
["FOR34","Tarlórépa","Nem","Nem","Nem",0.1,0.99,1.0900000000000001,null,null,null,0.1,0.89,0.1,1.0900000000000001,null,null,null,null,null,null,null,null,null,null,null,null,9,"Egyéb növények","Tarlórépa","FOR34","Tarlórépa"]
["FOR35","Takarmányrépa","Nem","Nem","Nem",0.1,0.99,1.0900000000000001,null,null,null,0.1,0.89,0.1,1.0900000000000001,null,null,null,null,null,null,null,null,null,null,null,null,9,"Egyéb növények","Takarmányrépa","FOR35","Takarmányrépa"]
["FOR36","Csicsóka","Nem","Nem","Nem",0.1,2.98,3.08,null,null,null,0.1,2.88,0.1,3.08,null,null,null,null,null,null,null,null,null,null,null,null,9,"Egyéb növények","Csicsóka","FOR36","Csicsóka"]
["FOR37","Murokrépa","Nem",{"$f":"IF(I191<>0,\"Igen\",\"Nem\")","v":"Nem"},{"$f":"IF(J191<>0,\"Igen\",\"Nem\")","v":"Nem"},0.1,0.99,{"$f":"F191+G191","v":1.0900000000000001},null,null,null,0.1,0.89,0.1,1.0900000000000001,null,null,null,null,null,null,null,null,null,null,null,null,9,"Egyéb növények","Murokrépa","FOR37","Murokrépa"]
["FOR38","Tarka koronafürt","Nem","Nem","Nem",0.1,0.5,0.6,null,null,null,0.1,0.4,0.1,{"$f":"L192+M192+N192","v":0.6},null,null,null,null,null,null,null,null,null,null,null,null,9,"Egyéb növények","Tarka koronafürt","FOR38","Tarka koronafürt"]
["FOR39","Görög széna","Nem","Nem","Nem",0.1,2.98,3.08,null,null,null,0.1,2.88,0.1,3.08,null,null,null,null,null,null,null,null,null,null,null,null,9,"Egyéb növények","Görög széna","FOR39","Görög széna"]
["FOR40","Keleti kecskeruta ","Nem","Nem","Nem",0.1,0.99,1.0900000000000001,null,null,null,0.1,0.89,0.1,1.0900000000000001,null,null,null,null,null,null,null,null,null,null,null,null,9,"Egyéb növények","Keleti kecskeruta ","FOR40","Keleti kecskeruta "]
["FOR41","Mézontófű (Facélia)","Nem","Nem","Nem",0.1,0.99,1.0900000000000001,null,null,null,0.1,0.89,0.1,1.0900000000000001,null,null,null,null,null,null,null,null,null,null,null,null,9,"Egyéb növények","Mézontófű (Facélia)","FOR41","Mézontófű (Facélia)"]
["FOR56","Füves lucerna","Nem","Nem","Nem",0.1,0.5,0.6,null,null,null,0.1,0.4,0.1,0.6,null,null,null,null,null,null,null,null,null,null,null,null,9,"Egyéb növények","Ideiglenes gyep","FOR56","Füves lucerna"]
["FOR57","Füves here","Nem","Nem","Nem",0.1,0.5,0.6,null,null,null,0.1,0.4,0.1,0.6,null,null,null,null,null,null,null,null,null,null,null,null,9,"Egyéb növények","Ideiglenes gyep","FOR57","Füves here"]
["FOR58","Takarmánymályva","Nem","Nem","Nem",0.1,0.99,1.0900000000000001,null,null,null,0.1,0.89,0.1,1.0900000000000001,null,null,null,null,null,null,null,null,null,null,null,null,9,"Egyéb növények","Takarmánymályva",{"$f":"A198","v":"FOR58"},{"$f":"B198","v":"Takarmánymályva"}]
["FOR59","Szilfium","Nem","Nem","Nem",0.1,0.99,1.0900000000000001,null,null,null,0.1,0.89,0.1,1.0900000000000001,null,null,null,null,null,null,null,null,null,null,null,null,9,"Egyéb növények","Szilfium","FOR59","Szilfium"]
["FOR60","Lósóska","Nem","Nem","Nem",0.1,2.98,3.08,null,null,null,0.1,2.88,0.1,3.08,null,null,null,null,null,null,null,null,null,null,null,null,9,"Egyéb növények","Lósóska","FOR60","Lósóska"]
["FRU11","Szeder","Nem","Nem","Nem",0.1,9.94,10.039999999999999,null,null,null,0.1,9.84,0.1,10.039999999999999,null,null,null,null,null,null,null,null,null,null,null,null,3,"Gyömölcsösök - gyümölcsök","Szeder","FRU11","Szeder"]
["FRU12","Tüske nélküli szeder","Nem","Nem","Nem",0.1,4.97,5.0699999999999994,null,null,null,0.1,4.87,0.1,5.0699999999999994,null,null,null,null,null,null,null,null,null,null,null,null,3,"Gyömölcsösök - gyümölcsök","Szeder","FRU12","Tüske nélküli szeder"]
["FRU13","Yosta (rikö)","Nem","Nem","Nem",0.1,4.97,5.0699999999999994,null,null,null,0.1,4.87,0.1,5.0699999999999994,null,null,null,null,null,null,null,null,null,null,null,null,3,"Gyömölcsösök - gyümölcsök","Yosta (rikö)","FRU13","Yosta (rikö)"]
["FRU14","Homoktövis","Nem","Nem","Nem",0.1,2.98,3.08,null,null,null,0.1,2.88,0.1,3.08,null,null,null,null,null,null,null,null,null,null,null,null,3,"Gyömölcsösök - gyümölcsök","Homoktövis","FRU14","Homoktövis"]
["FRU18","Berkenye","Nem","Nem","Nem",0.99,11.93,12.92,null,null,null,0.99,11.83,0.1,12.92,null,null,null,null,null,null,null,null,null,null,null,null,3,"Gyömölcsösök - gyümölcsök","Berkenye","FRU18","Berkenye"]
["HAG11","Hagyományos gyümölcsös szelídgesztenye","Nem","Nem","Nem",0.99,15.9,16.89,null,null,null,0.99,15.8,0.1,16.89,null,null,null,null,null,null,null,null,null,null,null,null,3,"Gyömölcsösök - gyümölcsök","Hagyományos gyümölcsösök","HAG11","Hagyományos gyümölcsös szelídgesztenye"]
["HAG12","Hagyományos gyümölcsös vegyes","Nem","Nem","Nem",0.99,15.9,16.89,null,null,null,0.99,15.8,0.1,16.89,null,null,null,null,null,null,null,null,null,null,null,null,3,"Gyömölcsösök - gyümölcsök","Hagyományos gyümölcsösök","HAG12","Hagyományos gyümölcsös vegyes"]
["HAG20","Hagyományos gyümölcsös bodza","Nem","Nem","Nem",0.99,15.9,16.89,null,null,null,0.99,15.8,0.1,16.89,null,null,null,null,null,null,null,null,null,null,null,null,3,"Gyömölcsösök - gyümölcsök","Hagyományos gyümölcsösök","HAG20","Hagyományos gyümölcsös bodza"]
["HAG21","Hagyományos gyümölcsös homoktövis","Nem","Nem","Nem",0.99,15.9,16.89,null,null,null,0.99,15.8,0.1,16.89,null,null,null,null,null,null,null,null,null,null,null,null,3,"Gyömölcsösök - gyümölcsök","Hagyományos gyümölcsösök","HAG21","Hagyományos gyümölcsös homoktövis"]
["HAG22","Hagyományos gyümölcsös Áfonya","Nem","Nem","Nem",0.99,15.9,16.89,null,null,null,0.99,15.8,0.1,16.89,null,null,null,null,null,null,null,null,null,null,null,null,3,"Gyömölcsösök - gyümölcsök","Hagyományos gyümölcsösök","HAG22","Hagyományos gyümölcsös Áfonya"]
["HAG23","Hagyományos gyümölcsös Berkenye","Nem","Nem","Nem",0.99,15.9,16.89,null,null,null,0.99,15.8,0.1,16.89,null,null,null,null,null,null,null,null,null,null,null,null,3,"Gyömölcsösök - gyümölcsök","Hagyományos gyümölcsösök","HAG23","Hagyományos gyümölcsös Berkenye"]
["HAG24","Hagyományos gyümölcsös Fekete berkenye","Nem","Nem","Nem",0.99,15.9,16.89,null,null,null,0.99,15.8,0.1,16.89,null,null,null,null,null,null,null,null,null,null,null,null,3,"Gyömölcsösök - gyümölcsök","Hagyományos gyümölcsösök","HAG24","Hagyományos gyümölcsös Fekete berkenye"]
["HAG25","Hagyományos gyümölcsös Fehér eperfa","Nem","Nem","Nem",0.99,15.9,16.89,null,null,null,0.99,15.8,0.1,16.89,null,null,null,null,null,null,null,null,null,null,null,null,3,"Gyömölcsösök - gyümölcsök","Hagyományos gyümölcsösök","HAG25","Hagyományos gyümölcsös Fehér eperfa"]
["HAG26","Hagyományos gyümölcsös Fekete eperfa","Nem","Nem","Nem",0.99,15.9,16.89,null,null,null,0.99,15.8,0.1,16.89,null,null,null,null,null,null,null,null,null,null,null,null,3,"Gyömölcsösök - gyümölcsök","Hagyományos gyümölcsösök","HAG26","Hagyományos gyümölcsös Fekete eperfa"]
["IND06","Szezámmag","Nem","Nem","Nem",0.1,2.98,3.08,null,null,null,0.1,2.88,0.1,3.08,null,null,null,null,null,null,null,null,null,null,null,null,9,"Egyéb növények","Szezámmag","IND06","Szezámmag"]
["IND07","Olajlen","Nem","Nem","Nem",0.1,3.98,4.08,null,null,null,0.1,3.88,0.1,4.08,null,null,null,null,null,null,null,null,null,null,null,null,9,"Egyéb növények","Len","IND07","Olajlen"]
["IND08","Rostlen","Nem","Nem","Nem",0.1,3.98,4.08,null,null,null,0.1,3.88,0.1,4.08,null,null,null,null,null,null,null,null,null,null,null,null,9,"Egyéb növények","Len","IND08","Rostlen"]
["IND13","Ricinus","Nem","Nem","Nem",0.1,2.98,3.08,null,null,null,0.1,2.88,0.1,3.08,null,null,null,null,null,null,null,null,null,null,null,null,9,"Egyéb növények","Ricinusmag","IND13","Ricinus"]
["IND18","Takarmányretek","Nem","Nem","Nem",0.1,1.99,2.09,null,null,null,0.1,1.89,0.1,2.09,null,null,null,null,null,null,null,null,null,null,null,null,9,"Egyéb növények","Retek","IND18","Takarmányretek"]
["IND19","Négermag","Nem","Nem","Nem",0.1,1.99,2.09,null,null,null,0.1,1.89,0.1,2.09,null,null,null,null,null,null,null,null,null,null,null,null,9,"Egyéb növények","Négermag","IND19","Négermag"]
["IND20","Vadrepce","Nem","Nem","Nem",0.1,0.99,1.0900000000000001,null,null,null,0.1,0.89,0.1,1.0900000000000001,null,null,null,null,null,null,null,null,null,null,null,null,9,"Egyéb növények","Vadrepcemag","IND20","Vadrepce"]
["IND21","Gomborka","Nem","Nem","Nem",0.1,0.99,1.0900000000000001,null,null,null,0.1,0.89,0.1,1.0900000000000001,null,null,null,null,null,null,null,null,null,null,null,null,9,"Egyéb növények","Gomborka","IND21","Gomborka"]
["IND22","Cikória","Nem","Nem","Nem",0.1,0.99,1.0900000000000001,null,null,null,0.1,0.89,0.1,1.0900000000000001,null,null,null,null,null,null,null,null,null,null,null,null,9,"Egyéb növények","Cikória","IND22","Cikória"]
["KAL16","Évelő rozs","Nem","Igen","Igen",0.1,0.99,1.0900000000000001,0.6,0.8,null,0.1,0.89,0.1,1.0900000000000001,null,0.6,0.7,0.1,{"$f":"S224+R224","v":0.79999999999999993},null,null,null,null,null,null,null,9,"Egyéb növények","Rozs ","KAL16","Évelő rozs"]
["KAL22","Pattogatni való kukorica","Nem","Nem","Igen",0.1,2.98,3.08,null,2.98,null,0.1,2.88,0.1,3.08,null,null,2.88,0.1,{"$f":"S225+R225","v":2.98},null,null,null,null,null,null,null,9,"Egyéb növények","Kukorica","KAL22","Pattogatni való kukorica"]
["KAL24","Silókukorica","Nem","Nem","Igen",0.1,0.5,0.6,null,1.49,null,0.1,0.4,0.1,0.6,null,null,1.39,0.1,{"$f":"S226+R226","v":1.49},null,null,null,null,null,null,null,9,"Egyéb növények","Kukorica","KAL24","Silókukorica"]
["KAL28","Pohánka (Hajdina)","Nem","Nem","Nem",0.1,1.99,2.09,null,null,null,0.1,1.89,0.1,2.09,null,null,null,null,null,null,null,null,null,null,null,null,9,"Egyéb növények","Pohánka (Hajdina)","KAL28","Pohánka (Hajdina)"]
["KAL29","Mohar ","Nem","Nem","Nem",0.1,0.99,1.0900000000000001,null,null,null,0.1,0.89,0.1,1.0900000000000001,null,null,null,null,null,null,null,null,null,null,null,null,9,"Egyéb növények","Mohar ","KAL29","Mohar "]
["KAL30","Cukorcirok","Nem","Nem","Nem",0.1,1.99,2.09,null,null,null,0.1,1.89,0.1,2.09,null,null,null,null,null,null,null,null,null,null,null,null,9,"Egyéb növények","Cirok","KAL30","Cukorcirok"]
["KAL31","Seprűcirok","Nem","Nem","Nem",0.1,1.99,2.09,null,null,null,0.1,1.89,0.1,2.09,null,null,null,null,null,null,null,null,null,null,null,null,9,"Egyéb növények","Cirok","KAL31","Seprűcirok"]
["KAL32","Szemescirok","Nem","Nem","Nem",0.1,0.99,1.0900000000000001,null,null,null,0.1,0.89,0.1,1.0900000000000001,null,null,null,null,null,null,null,null,null,null,null,null,9,"Egyéb növények","Cirok","KAL32","Szemescirok"]
["KAL33","Silócirok","Nem","Nem","Nem",0.1,0.5,0.6,null,null,null,0.1,0.4,0.1,0.6,null,null,null,null,null,null,null,null,null,null,null,null,9,"Egyéb növények","Cirok","KAL33","Silócirok"]
["KAL34","Szudáni cirokfű","Nem","Nem","Nem",0.1,0.5,0.6,null,null,null,0.1,0.4,0.1,0.6,null,null,null,null,null,null,null,null,null,null,null,null,9,"Egyéb növények","Cirok","KAL34","Szudáni cirokfű"]
["KAL35","Indiánrizs","Nem","Nem","Igen",0.1,9.94,10.039999999999999,null,9.94,null,0.1,9.84,0.1,10.039999999999999,null,null,9.84,0.1,{"$f":"S234+R234","v":9.94},null,null,null,null,null,null,null,9,"Egyéb növények","Indiánrizs","KAL35","Indiánrizs"]
["KAL36","Termesztett köles","Nem","Nem","Nem",0.1,1.99,2.09,null,null,null,0.1,1.89,0.1,2.09,null,null,null,null,null,null,null,null,null,null,null,null,9,"Egyéb növények","Köles","KAL36","Termesztett köles"]
["KAL37","Indiai köles","Nem","Nem","Nem",0.1,9.94,10.039999999999999,null,null,null,0.1,9.84,0.1,10.039999999999999,null,null,null,null,null,null,null,null,null,null,null,null,9,"Egyéb növények","Köles","KAL37","Indiai köles"]
["KAL38","Fénymag","Nem","Nem","Igen",0.06,0.63,0.69,null,0.5,null,0.06,0.53,0.1,0.69000000000000006,null,null,0.4,0.1,{"$f":"S237+R237","v":0.5},null,null,null,null,null,null,null,9,"Egyéb növények","Fénymag","KAL38","Fénymag"]
["KEN01","Kender ","Nem","Nem","Nem",0.1,2.98,3.08,null,null,null,0.1,2.88,0.1,3.08,null,null,null,null,null,null,null,null,null,null,null,null,9,"Egyéb növények","Kender","KEN01","Kender "]
["KEV01","Keverék kultúra","Nem","Nem","Nem",0.1,0.99,1.0900000000000001,null,null,null,0.1,0.89,0.1,1.0900000000000001,null,null,null,null,null,null,null,null,null,null,null,null,9,"Egyéb növények","Keverék kultúra","KEV01","Keverék kultúra"]
["KOM01","Komló","Nem","Nem","Nem",0.1,9.94,10.039999999999999,null,null,null,0.1,9.84,0.1,10.039999999999999,null,null,null,null,null,null,null,null,null,null,null,null,9,"Egyéb növények","Komló","KOM01","Komló"]
["PAZ01","Ebtippan","Nem","Nem","Nem",0.1,2.98,3.08,null,null,null,0.1,2.88,0.1,3.08,null,null,null,null,null,null,null,null,null,null,null,null,9,"Egyéb növények","Tippan","PAZ01","Ebtippan"]
["PAZ02","Óriás tippan","Nem","Nem","Nem",0.1,2.98,3.08,null,null,null,0.1,2.88,0.1,3.08,null,null,null,null,null,null,null,null,null,null,null,null,9,"Egyéb növények","Tippan","PAZ02","Óriás tippan"]
["PAZ03","Fehér tippan","Nem","Nem","Nem",0.1,2.98,3.08,null,null,null,0.1,2.88,0.1,3.08,null,null,null,null,null,null,null,null,null,null,null,null,9,"Egyéb növények","Tippan","PAZ03","Fehér tippan"]
["PAZ04","Cérnatippan","Nem","Nem","Nem",0.1,0.99,1.0900000000000001,null,null,null,0.1,0.89,0.1,1.0900000000000001,null,null,null,null,null,null,null,null,null,null,null,null,9,"Egyéb növények","Tippan","PAZ04","Cérnatippan"]
["PAZ05","Francia perje","Nem","Nem","Nem",0.1,2.98,3.08,null,null,null,0.1,2.88,0.1,3.08,null,null,null,null,null,null,null,null,null,null,null,null,9,"Egyéb növények","Perje","PAZ05","Francia perje"]
["PAZ06","Csenkeszperje","Nem","Nem","Nem",0.1,0.99,1.0900000000000001,null,null,null,0.1,0.89,0.1,1.0900000000000001,null,null,null,null,null,null,null,null,null,null,null,null,9,"Egyéb növények","Perje","PAZ06","Csenkeszperje"]
["PAZ07","Olasz perje (szálkás perje)","Nem","Nem","Nem",0.1,2.98,3.08,null,null,null,0.1,2.88,0.1,3.08,null,null,null,null,null,null,null,null,null,null,null,null,9,"Egyéb növények","Perje","PAZ07","Olasz perje (szálkás perje)"]
["PAZ08","Angol perje","Nem","Nem","Nem",0.1,2.98,3.08,null,null,null,0.1,2.88,0.1,3.08,null,null,null,null,null,null,null,null,null,null,null,null,9,"Egyéb növények","Perje","PAZ08","Angol perje"]
["PAZ09","Hibrid perje","Nem","Nem","Nem",0.1,2.98,3.08,null,null,null,0.1,2.88,0.1,3.08,null,null,null,null,null,null,null,null,null,null,null,null,9,"Egyéb növények","Perje","PAZ09","Hibrid perje"]
["PAZ10","Ligeti perje","Nem","Nem","Nem",0.1,2.98,3.08,null,null,null,0.1,2.88,0.1,3.08,null,null,null,null,null,null,null,null,null,null,null,null,9,"Egyéb növények","Perje","PAZ10","Ligeti perje"]
["PAZ11","Réti perje","Nem","Nem","Nem",0.1,2.98,3.08,null,null,null,0.1,2.88,0.1,3.08,null,null,null,null,null,null,null,null,null,null,null,null,9,"Egyéb növények","Perje","PAZ11","Réti perje"]
["PAZ12","Mocsári perje","Nem","Nem","Nem",0.1,2.98,3.08,null,null,null,0.1,2.88,0.1,3.08,null,null,null,null,null,null,null,null,null,null,null,null,9,"Egyéb növények","Perje","PAZ12","Mocsári perje"]
["PAZ13","Sovány perje","Nem","Nem","Nem",0.1,2.98,3.08,null,null,null,0.1,2.88,0.1,3.08,null,null,null,null,null,null,null,null,null,null,null,null,9,"Egyéb növények","Perje","PAZ13","Sovány perje"]
["PAZ14","Csomós ebír","Nem","Nem","Nem",0.1,2.98,3.08,null,null,null,0.1,2.88,0.1,3.08,null,null,null,null,null,null,null,null,null,null,null,null,9,"Egyéb növények","Csomós ebír","PAZ14","Csomós ebír"]
["PAZ15","Nádképű csenkesz","Nem",{"$f":"IF(I255<>0,\"Igen\",\"Nem\")","v":"Nem"},{"$f":"IF(J255<>0,\"Igen\",\"Nem\")","v":"Nem"},0.1,2.98,{"$f":"F255+G255","v":3.08},null,null,null,0.1,2.88,0.1,3.08,null,null,null,null,null,null,null,null,null,null,null,null,9,"Egyéb növények","Csenkesz","PAZ15","Nádképű csenkesz"]
["PAZ16","Juhcsenkesz","Nem","Nem","Nem",0.1,2.98,3.08,null,null,null,0.1,2.88,0.1,{"$f":"L256+M256+N256","v":3.08},null,null,null,null,null,null,null,null,null,null,null,null,9,"Egyéb növények","Csenkesz","PAZ16","Juhcsenkesz"]
["PAZ17","Réti csenkesz","Nem","Nem","Nem",0.1,2.98,3.08,null,null,null,0.1,2.88,0.1,3.08,null,null,null,null,null,null,null,null,null,null,null,null,9,"Egyéb növények","Csenkesz","PAZ17","Réti csenkesz"]
["PAZ18","Vörös csenkesz","Nem","Nem","Nem",0.1,2.98,3.08,null,null,null,0.1,2.88,0.1,3.08,null,null,null,null,null,null,null,null,null,null,null,null,9,"Egyéb növények","Csenkesz","PAZ18","Vörös csenkesz"]
["PAZ19","Gumós komócsin","Nem","Nem","Nem",0.1,2.98,3.08,null,null,null,0.1,2.88,0.1,3.08,null,null,null,null,null,null,null,null,null,null,null,null,9,"Egyéb növények","Komócsin","PAZ19","Gumós komócsin"]
["PAZ20","Réti komócsin","Nem","Nem","Nem",0.1,2.98,3.08,null,null,null,0.1,2.88,0.1,3.08,null,null,null,null,null,null,null,null,null,null,null,null,9,"Egyéb növények","Komócsin","PAZ20","Réti komócsin"]
["PAZ21","Veresnadrág csenkesz","Nem","Nem","Nem",0.1,2.98,3.08,null,null,null,0.1,2.88,0.1,3.08,null,null,null,null,null,null,null,null,null,null,null,null,9,"Egyéb növények","Csenkesz","PAZ21","Veresnadrág csenkesz"]
["PAZ22","Magyar rozsnok","Nem","Nem","Nem",0.1,2.98,3.08,null,null,null,0.1,2.88,0.1,3.08,null,null,null,null,null,null,null,null,null,null,null,null,9,"Egyéb növények","Perje",{"$f":"A262","v":"PAZ22"},{"$f":"B262","v":"Magyar rozsnok"}]
["PAZ23","Zöld Pántlikafű","Nem","Nem","Nem",0.1,2.98,3.08,null,null,null,0.1,2.88,0.1,3.08,null,null,null,null,null,null,null,null,null,null,null,null,9,"Egyéb növények","Perje","PAZ23","Zöld Pántlikafű"]
["PIL11","Futóbab","Nem","Nem","Nem",0.1,2.98,3.08,null,null,null,0.1,2.88,0.1,3.08,null,null,null,null,null,null,null,null,null,null,null,null,9,"Egyéb növények","Bab","PIL11","Futóbab"]
["PIL14","Homoki bab","Nem","Nem","Nem",0.1,2.98,3.08,null,null,null,0.1,2.88,0.1,3.08,null,null,null,null,null,null,null,null,null,null,null,null,9,"Egyéb növények","Bab","PIL14","Homoki bab"]
["PIL15","Fehérvirágú édes csillagfürt","Nem","Nem","Nem",0.1,2.98,3.08,null,null,null,0.1,2.88,0.1,3.08,null,null,null,null,null,null,null,null,null,null,null,null,9,"Egyéb növények","Csillagfürt","PIL15","Fehérvirágú édes csillagfürt"]
["PIL16","Fehérvirágú édes csillagfürt (takarmány célra)","Nem","Nem","Nem",0.1,2.98,3.08,null,null,null,0.1,2.88,0.1,3.08,null,null,null,null,null,null,null,null,null,null,null,null,9,"Egyéb növények","Csillagfürt","PIL16","Fehérvirágú édes csillagfürt (takarmány célra)"]
["PIL17","Fehérvirágú édes csillagfürt (zöldtrágyázásra)","Nem","Nem","Nem",0.1,2.98,3.08,null,null,null,0.1,2.88,0.1,3.08,null,null,null,null,null,null,null,null,null,null,null,null,9,"Egyéb növények","Csillagfürt","PIL17","Fehérvirágú édes csillagfürt (zöldtrágyázásra)"]
["PIL18","Sárgavirágú édes csillagfürt","Nem","Nem","Nem",0.1,2.98,3.08,null,null,null,0.1,2.88,0.1,3.08,null,null,null,null,null,null,null,null,null,null,null,null,9,"Egyéb növények","Csillagfürt","PIL18","Sárgavirágú édes csillagfürt"]
["PIL19","Sárgavirágú édes csillagfürt (takarmány célra)","Nem","Nem","Nem",0.1,2.98,3.08,null,null,null,0.1,2.88,0.1,3.08,null,null,null,null,null,null,null,null,null,null,null,null,9,"Egyéb növények","Csillagfürt","PIL19","Sárgavirágú édes csillagfürt (takarmány célra)"]
["PIL20","Sárgavirágú édes csillagfürt (zöldtrágyázásra)","Nem","Nem","Nem",0.1,2.98,3.08,null,null,null,0.1,2.88,0.1,3.08,null,null,null,null,null,null,null,null,null,null,null,null,9,"Egyéb növények","Csillagfürt","PIL20","Sárgavirágú édes csillagfürt (zöldtrágyázásra)"]
["PIL21","Kékvirágú édes csillagfürt ","Nem","Nem","Nem",0.1,2.98,3.08,null,null,null,0.1,2.88,0.1,3.08,null,null,null,null,null,null,null,null,null,null,null,null,9,"Egyéb növények","Csillagfürt","PIL21","Kékvirágú édes csillagfürt "]
["PIL22","Kékvirágú édes csillagfürt (takarmány célra)","Nem","Nem","Nem",0.1,2.98,3.08,null,null,null,0.1,2.88,0.1,3.08,null,null,null,null,null,null,null,null,null,null,null,null,9,"Egyéb növények","Csillagfürt","PIL22","Kékvirágú édes csillagfürt (takarmány célra)"]
["PIL23","Kékvirágú édes csillagfürt (zöldtrágyázásra)","Nem","Nem","Nem",0.1,2.98,3.08,null,null,null,0.1,2.88,0.1,3.08,null,null,null,null,null,null,null,null,null,null,null,null,9,"Egyéb növények","Csillagfürt","PIL23","Kékvirágú édes csillagfürt (zöldtrágyázásra)"]
["PIL25","Takarmánybükköny (Tavaszi bükköny)","Nem","Nem","Nem",0.1,0.5,0.6,null,null,null,0.1,0.4,0.1,0.6,null,null,null,null,null,null,null,null,null,null,null,null,9,"Egyéb növények","Bükköny","PIL25","Takarmánybükköny (Tavaszi bükköny)"]
["PIL26","Szöszösbükköny","Nem","Nem","Nem",0.1,0.5,0.6,null,null,null,0.1,0.4,0.1,0.6,null,null,null,null,null,null,null,null,null,null,null,null,9,"Egyéb növények","Bükköny","PIL26","Szöszösbükköny"]
["PIL27","Pannonbükköny","Nem","Nem","Nem",0.1,0.5,0.6,null,null,null,0.1,0.4,0.1,0.6,null,null,null,null,null,null,null,null,null,null,null,null,9,"Egyéb növények","Bükköny","PIL27","Pannonbükköny"]
["PIL30","Szegletes lednek","Nem","Nem","Nem",0.1,0.99,1.0900000000000001,null,null,null,0.1,0.89,0.1,1.0900000000000001,null,null,null,null,null,null,null,null,null,null,null,null,9,"Egyéb növények","Szegletes lednek","PIL30","Szegletes lednek"]
["SZI01","Sziki kender","Nem","Nem","Nem",0.1,2.98,3.08,null,null,null,0.1,2.88,0.1,3.08,null,null,null,null,null,null,null,null,null,null,null,null,9,"Egyéb növények","Sziki kender","SZI01","Sziki kender"]
["ULT11","Szelídgesztenye","Nem","Nem","Nem",0.99,13.91,14.9,null,null,null,0.99,13.81,0.1,14.9,null,null,null,null,null,null,null,null,null,null,null,null,3,"Gyömölcsösök - gyümölcsök","Gyümölcsfák","ULT11","Szelídgesztenye"]
["ULT12","Vegyes gyümölcsös","Nem","Nem","Nem",0.99,13.91,14.9,null,null,null,0.99,13.81,0.1,14.9,null,null,null,null,null,null,null,null,null,null,null,null,3,"Gyömölcsösök - gyümölcsök","Gyümölcsfák","ULT12","Vegyes gyümölcsös"]
["ULT21","Füge","Nem","Nem","Nem",0.1,0.99,1.0900000000000001,null,null,null,0.1,0.89,0.1,1.0900000000000001,null,null,null,null,null,null,null,null,null,null,null,null,3,"Gyömölcsösök - gyümölcsök","Gyümölcsfák","ULT21","Füge"]
["ULT26","Csipkebogyó","Nem","Nem","Nem",0.99,11.93,12.92,null,null,null,0.99,11.83,0.1,12.92,null,null,null,null,null,null,null,null,null,null,null,null,3,"Gyömölcsösök - gyümölcsök","Gyümölcsfák","ULT26","Csipkebogyó"]
["ULT27","Kivi","Nem","Nem","Nem",0.1,0.99,1.0900000000000001,null,null,null,0.1,0.89,0.1,1.0900000000000001,null,null,null,null,null,null,null,null,null,null,null,null,3,"Gyömölcsösök - gyümölcsök","Gyümölcsfák","ULT27","Kivi"]
["ULT28","Egyéb ültetvény","Nem","Nem","Igen",0.06,10,10.06,null,1.88,null,0.06,9.9,0.1,10.06,null,null,1.78,0.1,{"$f":"S285+R285","v":1.8800000000000001},null,null,null,null,null,null,null,3,"Gyömölcsösök - gyümölcsök","Gyümölcsfák","ULT28","Egyéb ültetvény"]
["ULT30","Fehér eperfa","Nem","Nem","Nem",0.99,11.93,12.92,null,null,null,0.99,11.83,0.1,12.92,null,null,null,null,null,null,null,null,null,null,null,null,3,"Gyömölcsösök - gyümölcsök","Eperfa","ULT30","Fehér eperfa"]
["ULT31","Fekete eperfa","Nem","Nem","Nem",0.99,11.93,12.92,null,null,null,0.99,11.83,0.1,12.92,null,null,null,null,null,null,null,null,null,null,null,null,3,"Gyömölcsösök - gyümölcsök","Eperfa","ULT31","Fekete eperfa"]
["ULT32","Fekete berkenye","Nem","Nem","Igen",0.99,11.93,12.92,null,2.98,null,0.99,11.83,0.1,12.92,null,null,2.88,0.1,2.98,null,null,null,null,null,null,null,3,"Gyömölcsösök - gyümölcsök","Berkenye","ULT32","Fekete berkenye"]
["VEG03","Bimbóskel","Nem","Nem","Nem",0.1,2.98,3.08,null,null,null,0.1,2.88,0.1,3.08,null,null,null,null,null,null,null,null,null,null,null,null,5,"Zöltségek","Bimbóskel","VEG03","Bimbóskel"]
["VEG07","Takarmánykáposzta","Nem","Nem","Nem",0.1,0.99,1.0900000000000001,null,null,null,0.1,0.89,0.1,1.0900000000000001,null,null,null,null,null,null,null,null,null,null,null,null,5,"Zöltségek","Káposzta","VEG07","Takarmánykáposzta"]
["VEG08","Karalábé","Nem","Nem","Nem",0.1,2.98,3.08,null,null,null,0.1,2.88,0.1,3.08,null,null,null,null,null,null,null,null,null,null,null,null,5,"Zöltségek","Karalábé","VEG08","Karalábé"]
["VEG09","Kínai kel","Nem","Nem","Nem",0.1,3.98,4.08,null,null,null,0.1,3.88,0.1,4.08,null,null,null,null,null,null,null,null,null,null,null,null,5,"Zöltségek","Kínai kel","VEG09","Kínai kel"]
["VEG11","Póréhagyma","Nem","Nem","Nem",0.1,2.98,3.08,null,null,null,0.1,2.88,0.1,3.08,null,null,null,null,null,null,null,null,null,null,null,null,5,"Zöltségek","Hagyma","VEG11","Póréhagyma"]
["VEG12","Őszi fokhagyma","Nem","Nem","Nem",0.1,1.99,2.09,null,null,null,0.1,1.89,0.1,2.09,null,null,null,null,null,null,null,null,null,null,null,null,5,"Zöltségek","Hagyma","VEG12","Őszi fokhagyma"]
["VEG13","Tavaszi fokhagyma","Nem","Nem","Igen",0.1,1.99,2.09,null,0.99,null,0.1,1.89,0.1,2.09,null,null,0.89,0.1,0.99,null,null,null,null,null,null,null,5,"Zöltségek","Hagyma","VEG13","Tavaszi fokhagyma"]
["VEG17","Lilahagyma","Nem","Nem","Nem",0.1,1.99,2.09,null,null,null,0.1,1.89,0.1,2.09,null,null,null,null,null,null,null,null,null,null,null,null,5,"Zöltségek","Hagyma","VEG17","Lilahagyma"]
["VEG18","Metélőhagyma","Nem","Nem","Nem",0.1,2.98,3.08,null,null,null,0.1,2.88,0.1,3.08,null,null,null,null,null,null,null,null,null,null,null,null,5,"Zöltségek","Hagyma","VEG18","Metélőhagyma"]
["VEG19","Fejessaláta","Nem","Nem","Nem",0.1,2.98,3.08,null,null,null,0.1,2.88,0.1,3.08,null,null,null,null,null,null,null,null,null,null,null,null,5,"Zöltségek","Fejessaláta","VEG19","Fejessaláta"]
["VEG20","Endívia","Nem","Nem","Nem",0.1,2.98,3.08,null,null,null,0.1,2.88,0.1,3.08,null,null,null,null,null,null,null,null,null,null,null,null,5,"Zöltségek","Endívia","VEG20","Endívia"]
["VEG24","Articsóka","Nem","Nem","Nem",0.1,2.98,3.08,null,null,null,0.1,2.88,0.1,3.08,null,null,null,null,null,null,null,null,null,null,null,null,5,"Zöltségek","Articsóka","VEG24","Articsóka"]
["VEG25","Spanyol Articsóka","Nem","Nem","Nem",0.1,2.98,3.08,null,null,null,0.1,2.88,0.1,3.08,null,null,null,null,null,null,null,null,null,null,null,null,5,"Zöltségek","Articsóka","VEG25","Spanyol Articsóka"]
["VEG29","Rebarbara","Nem","Nem","Nem",0.1,3.98,4.08,null,null,null,0.1,3.88,0.1,4.08,null,null,null,null,null,null,null,null,null,null,null,null,5,"Zöltségek","Rebarbara","VEG29","Rebarbara"]
["VEG30","Édeskömény","Nem","Nem","Nem",0.1,2.98,3.08,null,null,null,0.1,2.88,0.1,3.08,null,null,null,null,null,null,null,null,null,null,null,null,5,"Zöltségek","Édeskömény","VEG30","Édeskömény"]
["VEG31","Galambbegysaláta","Nem","Nem","Nem",0.1,0.99,1.0900000000000001,null,null,null,0.1,0.89,0.1,1.0900000000000001,null,null,null,null,null,null,null,null,null,null,null,null,5,"Zöltségek","Galambbegysaláta","VEG31","Galambbegysaláta"]
["VEG32","Zsázsa","Nem","Nem","Nem",0.1,0.99,1.0900000000000001,null,null,null,0.1,0.89,0.1,1.0900000000000001,null,null,null,null,null,null,null,null,null,null,null,null,5,"Zöltségek","Zsázsa","VEG32","Zsázsa"]
["VEG35","Padlizsán (Tojásgyümölcs)","Nem","Nem","Nem",0.1,11.93,12.03,null,null,null,0.1,11.83,0.1,12.03,null,null,null,null,null,null,null,null,null,null,null,null,5,"Zöltségek","Padlizsán (Tojásgyümölcs)","VEG35","Padlizsán (Tojásgyümölcs)"]
["VEG47","Feketegyökér","Nem","Nem","Nem",0.1,0.99,1.0900000000000001,null,null,null,0.1,0.89,0.1,1.0900000000000001,null,null,null,null,null,null,null,null,null,null,null,null,5,"Zöltségek","Feketegyökér","VEG47","Feketegyökér"]
["VEG50","Újzélandi spenót","Nem","Nem","Nem",0.1,0.99,1.0900000000000001,null,null,null,0.1,0.89,0.1,1.0900000000000001,null,null,null,null,null,null,null,null,null,null,null,null,5,"Zöltségek","Újzélandi spenót","VEG50","Újzélandi spenót"]
["VEG51","Mezei csibehúr","Nem","Nem","Nem",0.1,0.99,1.0900000000000001,null,null,null,0.1,0.89,0.1,1.0900000000000001,null,null,null,null,null,null,null,null,null,null,null,null,5,"Zöltségek","Mezei csibehúr","VEG51","Mezei csibehúr"]
["VEG52","Egyéb zöldség","Nem","Nem","Nem",0.1,2.98,3.08,null,null,null,0.1,2.88,0.1,3.08,null,null,null,null,null,null,null,null,null,null,null,null,5,"Zöltségek","Egyéb zöldség","VEG52","Egyéb zöldség"]
["VEG54","Batáta (édesburgonya)","Nem","Nem","Nem",0.1,2.48,2.58,null,null,null,0.1,2.38,0.1,2.58,null,null,null,null,null,null,null,null,null,null,null,null,5,"Zöltségek","Batáta","VEG54","Batáta (édesburgonya)"]
["VEG55","Borsmustár (rukkola)","Nem","Nem","Nem",0.1,2.48,2.58,null,null,null,0.1,2.38,0.1,2.58,null,null,null,null,null,null,null,null,null,null,null,null,5,"Zöltségek","Borsmustár","VEG55","Borsmustár (rukkola)"]

{"sheet":"Segéd","index":3,"n_rows":134,"n_cols":11,"rows_kept":134,"cut":false,"hidden":true,"merged":[]}
["Növény csoportok",null,"Alap_szántóföldi_növények",null,"Egyéb_növények",null,"Fűszernövények",null,"Gyümölcsösök_gyümölcsök",null,"Zöltségek"]
["Alap_szántóföldi_növények",null,"Oszlop1",null,"Oszlop1",null,"Oszlop1",null,"Oszlop1",null,"Oszlop1"]
["Egyéb_növények",null,"Kukorica",null,"Alexandriai here",null,"Abesszin (etiópiai) mustár",null,"Áfonya",null,"Articsóka"]
["Fűszernövények",null,"Napraforgó",null,"Angol perje",null,"Angyalgyökér",null,"Alma",null,"Batáta (édesburgonya)"]
["Gyümölcsösök_gyümölcsök",null,"Őszi alakor búza",null,"Bíborhere",null,"Ánizs",null,"Berkenye",null,"Bimbóskel"]
["Zöltségek",null,"Őszi árpa",null,"Burgonya",null,"Ánizsizsóp",null,"Birs",null,"Borsmustár (rukkola)"]
["Nincs",null,"Őszi búza",null,"Cérnatippan",null,"Ánizsmenta",null,"Csemegeszőlő ültetvény",null,"Brokkoli"]
[null,null,"Őszi durumbúza",null,"Cikória",null,"Anyarozs",null,"Cseresznye",null,"Cékla"]
[null,null,"Őszi káposztarepce",null,"Cukorborsó",null,"Bazsalikom",null,"Csipkebogyó",null,"Cukkini"]
[null,null,"Őszi novum búza",null,"Cukorcirok",null,"Bíbor kasvirág (Echinacea)",null,"Dió",null,"Csemegehagyma"]
[null,null,"Őszi tönke búza",null,"Cukorrépa",null,"Borágó",null,"Egyéb bodza",null,"Csillagtök/patiszon"]
[null,null,"Őszi tönköly búza",null,"Csemegekukorica",null,"Borsikafű",null,"Egyéb borszőlő szőlőültetvény",null,"Édeskömény"]
[null,null,"Őszi tritikálé",null,"Csenkeszperje",null,"Cickafark",null,"Egyéb ültetvény",null,"Egyéb zöldség"]
[null,null,"Rozs",null,"Csicseriborsó",null,"Citromfű",null,"Fehér eperfa",null,"Endívia"]
[null,null,"Tavaszi alakor búza",null,"Csicsóka",null,"Digitalis",null,"Fekete berkenye",null,"Fejes káposzta"]
[null,null,"Tavaszi árpa",null,"Csomós ebír",null,"Fűszerkömény",null,"Fekete bodza",null,"Fejessaláta"]
[null,null,"Tavaszi búza",null,"Dohány- Burley",null,"Gyermekláncfű",null,"Fekete eperfa",null,"Feketegyökér"]
[null,null,"Tavaszi durumbúza",null,"Dohány- Virginia",null,"Izsóp",null,"Földieper (szamóca)",null,"Főzőtök"]
[null,null,"Tavaszi káposztarepce",null,"Ebtippan",null,"Jázmin",null,"Füge",null,"Fűszerpaprika"]
[null,null,"Tavaszi novum búza",null,"Egyéb szántóföldi termelt növény",null,"Jázminpakóca (stevia)",null,"Görög dinnye",null,"Galambbegysaláta"]
[null,null,"Tavaszi tönke búza",null,"Energiafű",null,"Kamilla",null,"Hagyományos gyümölcsös Áfonya",null,"Káposztatök"]
[null,null,"Tavaszi tönköly búza",null,"Évelő rozs",null,"Kapor",null,"Hagyományos gyümölcsös alma",null,"Karalábé"]
[null,null,"Tavaszi tritikálé",null,"Fehér mustár",null,"Kerti kakukkfű",null,"Hagyományos gyümölcsös Berkenye",null,"Karfiol"]
[null,null,"Nincs",null,"Fehér tippan",null,"Kerti ruta",null,"Hagyományos gyümölcsös birs",null,"Kelkáposzta"]
[null,null,null,null,"Fehérhere",null,"Koriander",null,"Hagyományos gyümölcsös bodza",null,"Kínai kel"]
[null,null,null,null,"Fehérvirágú édes csillagfürt",null,"Körömvirág",null,"Hagyományos gyümölcsös cseresznye",null,"Lilahagyma"]
[null,null,null,null,"Fehérvirágú édes csillagfürt (takarmány célra)",null,"Lestyán",null,"Hagyományos gyümölcsös dió",null,"Metélőhagyma"]
[null,null,null,null,"Fehérvirágú édes csillagfürt (zöldtrágyázásra)",null,"Levendula",null,"Hagyományos gyümölcsös Fehér eperfa",null,"Mezei csibehúr"]
[null,null,null,null,"Fehérvirágú somkóró",null,"Macskagyökérfű",null,"Hagyományos gyümölcsös Fekete berkenye",null,"Olajtök"]
[null,null,null,null,"Fekete mustár",null,"Majoranna",null,"Hagyományos gyümölcsös Fekete eperfa",null,"Őszi fokhagyma"]
[null,null,null,null,"Fénymag",null,"Máriatövis",null,"Hagyományos gyümölcsös homoktövis",null,"Őszi vöröshagyma"]
[null,null,null,null,"Földimogyoró",null,"Menta",null,"Hagyományos gyümölcsös kajszibarack (sárgabarack)",null,"Padlizsán (Tojásgyümölcs)"]
[null,null,null,null,"Francia perje",null,"Meténg",null,"Hagyományos gyümölcsös körte",null,"Paprika"]
[null,null,null,null,"Futóbab",null,"Oregánó (szurokfű)",null,"Hagyományos gyümölcsös mandula",null,"Paradicsom"]
[null,null,null,null,"Füves here",null,"Orvosi zsálya",null,"Hagyományos gyümölcsös meggy",null,"Pasztinák"]
[null,null,null,null,"Füves lucerna",null,"Rozmaring",null,"Hagyományos gyümölcsös mogyoró",null,"Petrezselyem gyökér (fehérrépa)"]
[null,null,null,null,"Gomborka",null,"Sáfrány",null,"Hagyományos gyümölcsös naspolya",null,"Petrezselyem levél"]
[null,null,null,null,"Görög széna",null,"Sáfrányos szeklice",null,"Hagyományos gyümölcsös nektarin",null,"Póréhagyma"]
[null,null,null,null,"Gumós komócsin",null,"Szöszös ökörfarkkóró",null,"Hagyományos gyümölcsös őszibarack",null,"Rebarbara"]
[null,null,null,null,"Hibrid kukorica",null,"Tárkony",null,"Hagyományos gyümölcsös szelídgesztenye",null,"Sárgarépa"]
[null,null,null,null,"Hibrid napraforgó",null,"Tárnics",null,"Hagyományos gyümölcsös szilva",null,"Sóska"]
[null,null,null,null,"Hibrid perje",null,"Utifű (Psyllium)",null,"Hagyományos gyümölcsös vegyes",null,"Spanyol Articsóka"]
[null,null,null,null,"Homoki bab",null,"Nincs",null,"Homoktövis",null,"Spárga"]
[null,null,null,null,"Indiai köles",null,null,null,"Kajszibarack (sárgabarack)",null,"Spárgatök"]
[null,null,null,null,"Indiánrizs",null,null,null,"Kivi",null,"Spenót"]
[null,null,null,null,"Juhcsenkesz",null,null,null,"Körte",null,"Sütőtök"]
[null,null,null,null,"Kékvirágú édes csillagfürt ",null,null,null,"Málna",null,"Takarmánykáposzta"]
[null,null,null,null,"Kékvirágú édes csillagfürt (takarmány célra)",null,null,null,"Mandula",null,"Tavaszi fokhagyma"]
[null,null,null,null,"Kékvirágú édes csillagfürt (zöldtrágyázásra)",null,null,null,"Meggy",null,"Tavaszi vöröshagyma"]
[null,null,null,null,"Keleti kecskeruta ",null,null,null,"Minőségi borszőlő ültetvény",null,"Torma"]
[null,null,null,null,"Kender ",null,null,null,"Mogyoró",null,"Uborka"]
[null,null,null,null,"Keverék kultúra",null,null,null,"Naspolya",null,"Újzélandi spenót"]
[null,null,null,null,"Komló",null,null,null,"Nektarin",null,"Vöröskáposzta"]
[null,null,null,null,"Komlós lucerna",null,null,null,"Őszibarack",null,"Zeller"]
[null,null,null,null,"Korcshere (svédhere)",null,null,null,"Piszke",null,"Zsázsa"]
[null,null,null,null,"Koronás baltavirág",null,null,null,"Ribiszke",null,"Nincs"]
[null,null,null,null,"Lencse ",null,null,null,"Sárgadinnye"]
[null,null,null,null,"Ligeti perje",null,null,null,"Szeder"]
[null,null,null,null,"Lóbab (Disznóbab)",null,null,null,"Szelídgesztenye"]
[null,null,null,null,"Lódi lóhere",null,null,null,"Szilva"]
[null,null,null,null,"Lósóska",null,null,null,"Tökre oltott görög dinnye"]
[null,null,null,null,"Lucerna",null,null,null,"Tüske nélküli szeder"]
[null,null,null,null,"Lucerna erjesztett takarmány",null,null,null,"Vegyes gyümölcsös"]
[null,null,null,null,"Lucerna zöldtakarmány",null,null,null,"Yosta (rikö)"]
[null,null,null,null,"Magyar rozsnok",null,null,null,"Nincs"]
[null,null,null,null,"Mák"]
[null,null,null,null,"Mezei borsó"]
[null,null,null,null,"Mézontófű (Facélia)"]
[null,null,null,null,"Mocsári perje"]
[null,null,null,null,"Mohar "]
[null,null,null,null,"Murokrépa"]
[null,null,null,null,"Nádképű csenkesz"]
[null,null,null,null,"Négermag"]
[null,null,null,null,"Nyúlszapuka"]
[null,null,null,null,"Olajlen"]
[null,null,null,null,"Olajretek"]
[null,null,null,null,"Olasz perje (szálkás perje)"]
[null,null,null,null,"Óriás tippan"]
[null,null,null,null,"Őszi takarmányborsó"]
[null,null,null,null,"Őszi zab"]
[null,null,null,null,"Őszi zöldborsó"]
[null,null,null,null,"Pannonbükköny"]
[null,null,null,null,"Pattogatni való kukorica"]
[null,null,null,null,"Perzsahere (fonákhere)"]
[null,null,null,null,"Pohánka (Hajdina)"]
[null,null,null,null,"Réparepce"]
[null,null,null,null,"Retek"]
[null,null,null,null,"Réti csenkesz"]
[null,null,null,null,"Réti komócsin"]
[null,null,null,null,"Réti perje"]
[null,null,null,null,"Ricinus"]
[null,null,null,null,"Rizs"]
[null,null,null,null,"Rostlen"]
[null,null,null,null,"Sárgavirágú édes csillagfürt"]
[null,null,null,null,"Sárgavirágú édes csillagfürt (takarmány célra)"]
[null,null,null,null,"Sárgavirágú édes csillagfürt (zöldtrágyázásra)"]
[null,null,null,null,"Sárgavirágú somkóró (orvosi somkóró)"]
[null,null,null,null,"Sárkerep lucerna"]
[null,null,null,null,"Seprűcirok"]
[null,null,null,null,"Silócirok"]
[null,null,null,null,"Silókukorica"]
[null,null,null,null,"Sovány perje"]
[null,null,null,null,"Szárazbab"]
[null,null,null,null,"Szárazborsó (Sárgaborsó)"]
[null,null,null,null,"Szarvaskerep"]
[null,null,null,null,"Szegletes lednek"]
[null,null,null,null,"Szemescirok"]
[null,null,null,null,"Szeradella"]
[null,null,null,null,"Szezámmag"]
[null,null,null,null,"Sziki kender"]
[null,null,null,null,"Szilfium"]
[null,null,null,null,"Szójabab"]
[null,null,null,null,"Szöszösbükköny"]
[null,null,null,null,"Szudáni cirokfű"]
[null,null,null,null,"Takarmánybaltacim"]
[null,null,null,null,"Takarmánybükköny (Tavaszi bükköny)"]
[null,null,null,null,"Takarmánymályva"]
[null,null,null,null,"Takarmányrépa"]
[null,null,null,null,"Takarmányretek"]
[null,null,null,null,"Tarka koronafürt"]
[null,null,null,null,"Tarkavirágú lucerna"]
[null,null,null,null,"Tarlórépa"]
[null,null,null,null,"Tavaszi takarmányborsó"]
[null,null,null,null,"Tavaszi zab"]
[null,null,null,null,"Tavaszi zöldborsó"]
[null,null,null,null,"Termesztett köles"]
[null,null,null,null,"Tifon"]
[null,null,null,null,"Vadrepce"]
[null,null,null,null,"Veresnadrág csenkesz"]
[null,null,null,null,"Vörös csenkesz"]
[null,null,null,null,"Vöröshere"]
[null,null,null,null,"Zöld Pántlikafű"]
[null,null,null,null,"Zöldbab"]
[null,null,null,null,"Nincs"]